Workbook

Sheet Discussion
B2: Comparison of Actuals and Projections
B4: Step 1: Introduction Analysis of Project Finance Model
C5: Financial Model and ROE, ROIC
C6: Presentation Issues
C7: Forecasting Methods
B9: Step 2: Optional, Compute Economic Depreciation
C10: PPMT Function without inflation
C11: PPMT Function with Remaining Life
C12: PPMT Function with Inflation
B14: Step 3: Enter the Actuals in New Sheet
C15: Compare Actual and Financial Model
C16: Compute Waterfall Chart
C17: Use Match and Index to Find Data and Graph
C18: Make Chart in terms % of Revenue or % of Units Sold etc.
C19: Adjusted Min or Max on Chart
B21: Step 4: Compute Generation, Revenues, Expenses and Cap Exp in Actual/Forecast Sheet
C22: Present Average and Last Data
C23: Use Match for Forecast Method
C24: Use Choose for Alternative Forecasts
B26: Step 5: Add Scenario Page
C27: Create Standard Scenario Page with Code Number and Index
C28: Demonstrate the effect of different forecasts
B32: Step 5: Graph Actual/Forecast

Sheet General Inputs
B3: Last Year of Actuals | E3: 2013

Sheet Original FM
A2: Financial Model
F3: 2008 | G3: =F3+1 -> 2009 | H3: 2010 | I3: 2011 | J3: 2012 | K3: 2013 | L3: 2014 | M3: 2015 | N3: 2016 | O3: 2017 | P3: 2018 | Q3: 2019 | R3: 2020 | S3: 2021 | T3: 2022 | U3: 2023 | V3: 2024 | W3: 2025
B4: Production
C5: Gross Energy | D5: MWH | G5: 150000 | H5: =G5*0.985 -> 147750 | I5: =H5*0.985 -> 145533.75 | J5: 143350.7437 | K5: 141200.4826 | L5: 139082.4754 | M5: 136996.2382 | N5: 134941.2947 | O5: 132917.1752 | P5: 130923.4176 | Q5: 128959.5663 | R5: 127025.1728 | S5: 125119.7953 | T5: 123242.9983 | U5: 121394.3533 | V5: 119573.438 | W5: 117779.8365
C6: Energy for Outage | D6: MWH | G6: =G5*0.08 -> 12000 | H6: =H5*0.08 -> 11820 | I6: 11642.7 | J6: 11468.0595 | K6: 11296.03861 | L6: 11126.59803 | M6: 10959.69906 | N6: 10795.30357 | O6: 10633.37402 | P6: 10473.87341 | Q6: 10316.76531 | R6: 10162.01383 | S6: 10009.58362 | T6: 9859.439866 | U6: 9711.548268 | V6: 9565.875044 | W6: 9422.386918
C7: Net Energy | D7: MWH | G7: =G5-G6 -> 138000 | H7: 135930 | I7: 133891.05 | J7: 131882.6842 | K7: 129904.444 | L7: 127955.8773 | M7: 126036.5392 | N7: 124145.9911 | O7: 122283.8012 | P7: 120449.5442 | Q7: 118642.801 | R7: 116863.159 | S7: 115110.2116 | T7: 113383.5585 | U7: 111682.8051 | V7: 110007.563 | W7: 108357.4496
B9: Revenue and Expense
C10: Price of Energy | D10: RM/MWH | G10: 150 | H10: =G10*1.02 -> 153 | I10: =H10*1.02 -> 156.06 | J10: 159.1812 | K10: 162.364824 | L10: 165.6121205 | M10: 168.9243629 | N10: 172.3028501 | O10: 175.7489072 | P10: 179.2638853 | Q10: 182.849163 | R10: 186.5061463 | S10: 190.2362692 | T10: 194.0409946 | U10: 197.9218145 | V10: 201.8802507 | W10: 205.9178558
C11: Revenue | D11: RM 000's | G11: =G10*G7/1000 -> 20700 | H11: =H10*H7/1000 -> 20797.29 | I11: 20895.03726 | J11: 20993.24394 | K11: 21091.91218 | L11: 21191.04417 | M11: 21290.64208 | N11: 21390.7081 | O11: 21491.24443 | P11: 21592.25327 | Q11: 21693.73686 | R11: 21795.69743 | S11: 21898.13721 | T11: 22001.05845 | U11: 22104.46343 | V11: 22208.3544 | W11: 22312.73367
C13: Royalty Expense | D13: RM 000's | G13: =G11*0.09 -> 1863 | H13: =H11*0.09 -> 1871.7561 | I13: 1880.553354 | J13: 1889.391954 | K13: 1898.272097 | L13: 1907.193975 | M13: 1916.157787 | N13: 1925.163729 | O13: 1934.211998 | P13: 1943.302795 | Q13: 1952.436318 | R13: 1961.612769 | S13: 1970.832349 | T13: 1980.095261 | U13: 1989.401708 | V13: 1998.751896 | W13: 2008.14603
C14: Labour at Plant - Operations | D14: RM 000's | G14: 3200 | H14: =G14*1.015 -> 3248 | I14: =H14*1.015 -> 3296.72 | J14: 3346.1708 | K14: 3396.363362 | L14: 3447.308812 | M14: 3499.018445 | N14: 3551.503721 | O14: 3604.776277 | P14: 3658.847921 | Q14: 3713.73064 | R14: 3769.4366 | S14: 3825.978149 | T14: 3883.367821 | U14: 3941.618338 | V14: 4000.742613 | W14: 4060.753752
C15: Materials for Maintenance | D15: RM 000's | G15: 800 | H15: =G15*0.98 -> 784 | I15: =H15*0.98 -> 768.32 | J15: 752.9536 | K15: 737.894528 | L15: 723.1366374 | M15: 708.6739047 | N15: 694.5004266 | O15: 680.6104181 | P15: 666.9982097 | Q15: 653.6582455 | R15: 640.5850806 | S15: 627.773379 | T15: 615.2179114 | U15: 602.9135532 | V15: 590.8552821 | W15: 579.0381765
C16: Labour for Maintenance | D16: RM 000's | G16: 2500 | H16: =G16*1.01 -> 2525 | I16: =H16*1.01 -> 2550.25 | J16: 2575.7525 | K16: 2601.510025 | L16: 2627.525125 | M16: 2653.800377 | N16: 2680.33838 | O16: 2707.141764 | P16: 2734.213182 | Q16: 2761.555314 | R16: 2789.170867 | S16: 2817.062575 | T16: 2845.233201 | U16: 2873.685533 | V16: 2902.422388 | W16: 2931.446612
C17: Other Admin Expense | D17: RM 000's | G17: 750 | H17: =G17*1.005 -> 753.75 | I17: =H17*1.005 -> 757.51875 | J17: 761.3063437 | K17: 765.1128755 | L17: 768.9384398 | M17: 772.783132 | N17: 776.6470477 | O17: 780.5302829 | P17: 784.4329344 | Q17: 788.355099 | R17: 792.2968745 | S17: 796.2583589 | T17: 800.2396507 | U17: 804.2408489 | V17: 808.2620532 | W17: 812.3033635
C18: Insurance Expense | D18: RM 000's | G18: 1300 | H18: =G18 -> 1300 | I18: =H18 -> 1300 | J18: 1300 | K18: 1300 | L18: 1300 | M18: 1300 | N18: 1300 | O18: 1300 | P18: 1300 | Q18: 1300 | R18: 1300 | S18: 1300 | T18: 1300 | U18: 1300 | V18: 1300 | W18: 1300
C19: Total Expense | D19: RM 000's | G19: =SUM(G13:G18) -> 10413 | H19: =SUM(H13:H18) -> 10482.5061 | I19: 10553.3621 | J19: 10625.5752 | K19: 10699.15289 | L19: 10774.10299 | M19: 10850.43365 | N19: 10928.1533 | O19: 11007.27074 | P19: 11087.79504 | Q19: 11169.73562 | R19: 11253.10219 | S19: 11337.90481 | T19: 11424.15384 | U19: 11511.85998 | V19: 11601.03423 | W19: 11691.68793
C21: EBITDA | G21: =G11-G19 -> 10287 | H21: =H11-H19 -> 10314.7839 | I21: 10341.67516 | J21: 10367.66874 | K21: 10392.7593 | L21: 10416.94118 | M21: 10440.20843 | N21: 10462.55479 | O21: 10483.97368 | P21: 10504.45823 | Q21: 10524.00125 | R21: 10542.59524 | S21: 10560.2324 | T21: 10576.90461 | U21: 10592.60344 | V21: 10607.32017 | W21: 10621.04573
C22: Initial Capital Expenditure | D22: RM 000's | F22: 100000
C23: On-Going Capital Expenditure | D23: RM 000's | G23: 0 | H23: =G23 -> 0 | I23: =H23 -> 0 | J23: 0 | K23: 0 | L23: 0 | M23: 0 | N23: 0 | O23: 0 | P23: 0 | Q23: 0 | R23: 0 | S23: 0 | T23: 0 | U23: 0 | V23: 0 | W23: 0
C24: Project Cash Flow | F24: =F21-F22 -> -100000 | G24: =G21-G23 -> 10287 | H24: =H21-H23 -> 10314.7839 | I24: 10341.67516 | J24: 10367.66874 | K24: 10392.7593 | L24: 10416.94118 | M24: 10440.20843 | N24: 10462.55479 | O24: 10483.97368 | P24: 10504.45823 | Q24: 10524.00125 | R24: 10542.59524 | S24: 10560.2324 | T24: 10576.90461 | U24: 10592.60344 | V24: 10607.32017 | W24: 10621.04573
C25: Pre-Tax Project IRR | F25: =IRR(24:24) -> 0.07274127413
C27: Debt % | F27: 0.8
C28: Interest Rate | F28: 0.036
C29: Debt Tenure | F29: 15
A31: Debt Schedule
C32: Debt Financing | D32: RM 000's | F32: =F27*F22 -> 80000
C34: Opening balance | D34: RM 000's | G34: =F36 -> 80000 | H34: 74666.66667 | I34: 69333.33333 | J34: 64000 | K34: 58666.66667 | L34: 53333.33333 | M34: 48000 | N34: 42666.66667 | O34: 37333.33333 | P34: 32000 | Q34: 26666.66667 | R34: 21333.33333 | S34: 16000 | T34: 10666.66667 | U34: 5333.333333 | V34: 0 | W34: 0
C35: Debt Repayment | D35: RM 000's | G35: =MIN($F$36/$F$29,G34) -> 5333.333333 | H35: 5333.333333 | I35: 5333.333333 | J35: 5333.333333 | K35: 5333.333333 | L35: 5333.333333 | M35: 5333.333333 | N35: 5333.333333 | O35: 5333.333333 | P35: 5333.333333 | Q35: 5333.333333 | R35: 5333.333333 | S35: 5333.333333 | T35: 5333.333333 | U35: 5333.333333 | V35: 0 | W35: 0
C36: Closing balance | D36: RM 000's | F36: =F32 -> 80000 | G36: =G34-G35 -> 74666.66667 | H36: 69333.33333 | I36: 64000 | J36: 58666.66667 | K36: 53333.33333 | L36: 48000 | M36: 42666.66667 | N36: 37333.33333 | O36: 32000 | P36: 26666.66667 | Q36: 21333.33333 | R36: 16000 | S36: 10666.66667 | T36: 5333.333333 | U36: 0 | V36: 0 | W36: 0
C38: Interest expense | D38: RM 000's | G38: =G34*$F$28 -> 2880 | H38: 2688 | I38: 2496 | J38: 2304 | K38: 2112 | L38: 1920 | M38: 1728 | N38: 1536 | O38: 1344 | P38: 1152 | Q38: 960 | R38: 768 | S38: 576 | T38: 384 | U38: 192 | V38: 0 | W38: 0
A40: Accounting Analysis
B41: Profit and Loss
C42: EBITDA | D42: RM 000's | G42: =G21 -> 10287 | H42: 10314.7839 | I42: 10341.67516 | J42: 10367.66874 | K42: 10392.7593 | L42: 10416.94118 | M42: 10440.20843 | N42: 10462.55479 | O42: 10483.97368 | P42: 10504.45823 | Q42: 10524.00125 | R42: 10542.59524 | S42: 10560.2324 | T42: 10576.90461 | U42: 10592.60344 | V42: 10607.32017 | W42: 10621.04573
C43: Depreciation | D43: RM 000's | G43: =$F$22/17 -> 5882.352941 | H43: 5882.352941 | I43: 5882.352941 | J43: 5882.352941 | K43: 5882.352941 | L43: 5882.352941 | M43: 5882.352941 | N43: 5882.352941 | O43: 5882.352941 | P43: 5882.352941 | Q43: 5882.352941 | R43: 5882.352941 | S43: 5882.352941 | T43: 5882.352941 | U43: 5882.352941 | V43: 5882.352941 | W43: 5882.352941
C44: EBIT | G44: =G42-G43 -> 4404.647059 | H44: 4432.430959 | I44: 4459.322218 | J44: 4485.315799 | K44: 4510.406356 | L44: 4534.58824 | M44: 4557.855493 | N44: 4580.201852 | O44: 4601.620744 | P44: 4622.105291 | Q44: 4641.648307 | R44: 4660.242297 | S44: 4677.879454 | T44: 4694.551665 | U44: 4710.250502 | V44: 4724.967229 | W44: 4738.692793
C45: Interest | D45: RM 000's | G45: =G38 -> 2880 | H45: 2688 | I45: 2496 | J45: 2304 | K45: 2112 | L45: 1920 | M45: 1728 | N45: 1536 | O45: 1344 | P45: 1152 | Q45: 960 | R45: 768 | S45: 576 | T45: 384 | U45: 192 | V45: 0 | W45: 0
C46: EBT=PAT | D46: RM 000's | G46: =G44-G45 -> 1524.647059 | H46: 1744.430959 | I46: 1963.322218 | J46: 2181.315799 | K46: 2398.406356 | L46: 2614.58824 | M46: 2829.855493 | N46: 3044.201852 | O46: 3257.620744 | P46: 3470.105291 | Q46: 3681.648307 | R46: 3892.242297 | S46: 4101.879454 | T46: 4310.551665 | U46: 4518.250502 | V46: 4724.967229 | W46: 4738.692793
B48: Cashflow Statement
C49: EBITDA | D49: RM 000's | G49: =G42 -> 10287 | H49: 10314.7839 | I49: 10341.67516 | J49: 10367.66874 | K49: 10392.7593 | L49: 10416.94118 | M49: 10440.20843 | N49: 10462.55479 | O49: 10483.97368 | P49: 10504.45823 | Q49: 10524.00125 | R49: 10542.59524 | S49: 10560.2324 | T49: 10576.90461 | U49: 10592.60344 | V49: 10607.32017 | W49: 10621.04573
C50: Debt Service | D50: RM 000's | G50: =G35+G45 -> 8213.333333 | H50: 8021.333333 | I50: 7829.333333 | J50: 7637.333333 | K50: 7445.333333 | L50: 7253.333333 | M50: 7061.333333 | N50: 6869.333333 | O50: 6677.333333 | P50: 6485.333333 | Q50: 6293.333333 | R50: 6101.333333 | S50: 5909.333333 | T50: 5717.333333 | U50: 5525.333333 | V50: 0 | W50: 0
C51: Dividend | G51: =G49-G50 -> 2073.666667 | H51: 2293.450567 | I51: 2512.341826 | J51: 2730.335407 | K51: 2947.425964 | L51: 3163.607848 | M51: 3378.875101 | N51: 3593.221459 | O51: 3806.640352 | P51: 4019.124899 | Q51: 4230.667915 | R51: 4441.261904 | S51: 4650.899062 | T51: 4859.571273 | U51: 5067.27011 | V51: 10607.32017 | W51: 10621.04573
C52: Equity Cashflow | D52: RM 000's | F52: =-F22+F36 -> -20000 | G52: =G51 -> 2073.666667 | H52: 2293.450567 | I52: 2512.341826 | J52: 2730.335407 | K52: 2947.425964 | L52: 3163.607848 | M52: 3378.875101 | N52: 3593.221459 | O52: 3806.640352 | P52: 4019.124899 | Q52: 4230.667915 | R52: 4441.261904 | S52: 4650.899062 | T52: 4859.571273 | U52: 5067.27011 | V52: 10607.32017 | W52: 10621.04573
C53: Equity IRR | F53: =IRR(52:52) -> 0.1502195432
A55: Accounting Analysis - B&S
B56: Assets
C57: Net Plant Balance | D57: RM 000's | F57: =F22 -> 100000 | G57: =F57-G43 -> 94117.64706 | H57: 88235.29412 | I57: 82352.94118 | J57: 76470.58824 | K57: 70588.23529 | L57: 64705.88235 | M57: 58823.52941 | N57: 52941.17647 | O57: 47058.82353 | P57: 41176.47059 | Q57: 35294.11765 | R57: 29411.76471 | S57: 23529.41176 | T57: 17647.05882 | U57: 11764.70588 | V57: 5882.352941 | W57: 0
B59: Liability & Capital
C60: Borrowings | D60: RM 000's | F60: =F36 -> 80000 | G60: 74666.66667 | H60: 69333.33333 | I60: 64000 | J60: 58666.66667 | K60: 53333.33333 | L60: 48000 | M60: 42666.66667 | N60: 37333.33333 | O60: 32000 | P60: 26666.66667 | Q60: 21333.33333 | R60: 16000 | S60: 10666.66667 | T60: 5333.333333 | U60: 0 | V60: 0 | W60: 0
C61: Equity Capital | D61: RM 000's | F61: =F22-F36 -> 20000 | G61: =F61+G46-G51 -> 19450.98039 | H61: 18901.96078 | I61: 18352.94118 | J61: 17803.92157 | K61: 17254.90196 | L61: 16705.88235 | M61: 16156.86275 | N61: 15607.84314 | O61: 15058.82353 | P61: 14509.80392 | Q61: 13960.78431 | R61: 13411.76471 | S61: 12862.7451 | T61: 12313.72549 | U61: 11764.70588 | V61: 5882.352941 | W61: 0
C62: Total liabilities & Capital | D62: RM 000's | F62: =SUM(F60:F61) -> 100000 | G62: 94117.64706 | H62: 88235.29412 | I62: 82352.94118 | J62: 76470.58824 | K62: 70588.23529 | L62: 64705.88235 | M62: 58823.52941 | N62: 52941.17647 | O62: 47058.82353 | P62: 41176.47059 | Q62: 35294.11765 | R62: 29411.76471 | S62: 23529.41176 | T62: 17647.05882 | U62: 11764.70588 | V62: 5882.352941 | W62: 0
F64: =F57-F62 -> 0 | G64: 0 | H64: 0 | I64: 0 | J64: 0 | K64: 0 | L64: 0 | M64: 0 | N64: 0 | O64: 0 | P64: 0 | Q64: 0 | R64: 0 | S64: 0 | T64: 0 | U64: 0 | V64: 0 | W64: 0
C65: Balance Test | F65: =ROUND(F64,2)=0 -> TRUE | G65: TRUE | H65: TRUE | I65: TRUE | J65: TRUE | K65: TRUE | L65: TRUE | M65: TRUE | N65: TRUE | O65: TRUE | P65: TRUE | Q65: TRUE | R65: TRUE | S65: TRUE | T65: TRUE | U65: TRUE | V65: TRUE | W65: TRUE
C66: Aggregate Test | F66: =AND(F65:W65) -> TRUE
C68: Return on Assets (ROA) | G68: =G44/F57 -> 0.04404647059 | H68: 0.04709457894 | I68: 0.05053898514 | J68: 0.05446454899 | K68: 0.05898223697 | L68: 0.06424000007 | M68: 0.0704395849 | N68: 0.07786343148 | O68: 0.08691950294 | P68: 0.09821973744 | Q68: 0.1127257446 | R68: 0.1320401984 | S68: 0.1590479014 | T68: 0.1995184458 | U68: 0.2669141951 | V68: 0.4016222145 | W68: 0.8055777748
C69: Return on Equity (ROE) | G69: =G46/F61 -> 0.07623235294 | H69: 0.08968344647 | I69: 0.1038687066 | J69: 0.1188537454 | K69: 0.1347122513 | L69: 0.151527273 | M69: 0.1693927584 | N69: 0.1884154059 | O69: 0.2087169069 | P69: 0.2304366795 | Q69: 0.2537352212 | R69: 0.2787982544 | S69: 0.3058418891 | T69: 0.3351191081 | U69: 0.3669279867 | V69: 0.4016222145 | W69: 0.8055777748
C70: DSCR
A72: Alternative Accounting | G72: 1 | H72: =G72+1 -> 2 | I72: =H72+1 -> 3 | J72: 4 | K72: 5 | L72: 6 | M72: 7 | N72: 8 | O72: 9 | P72: 10 | Q72: 11 | R72: 12 | S72: 13 | T72: 14 | U72: 15 | V72: 16 | W72: 17
C73: Depreciation PPMT | E73: =F25 -> 0.07274127413 | G73: =PPMT($E$73,G72,17,-1) -> 0.03163699761 | H73: =PPMT($E$73,H72,17,-1) -> 0.03393831312 | I73: 0.03640702926 | J73: 0.03905532295 | K73: 0.04189625691 | L73: 0.04494384402 | M73: 0.04821311649 | N73: 0.05172020002 | O73: 0.05548239327 | P73: 0.05951825324 | Q73: 0.06384768682 | R73: 0.06849204891 | S73: 0.07347424781 | T73: 0.07881885821 | U73: 0.08455224239 | V73: 0.09070268023 | W73: 0.09730050875
C74: Alternative Deprecation | F74: =F57 -> 100000 | G74: =$F$74*G73 -> 3163.699761 | H74: =$F$74*H73 -> 3393.831312 | I74: 3640.702926 | J74: 3905.532295 | K74: 4189.625691 | L74: 4494.384402 | M74: 4821.311649 | N74: 5172.020002 | O74: 5548.239327 | P74: 5951.825324 | Q74: 6384.768682 | R74: 6849.204891 | S74: 7347.424781 | T74: 7881.885821 | U74: 8455.224239 | V74: 9070.268023 | W74: 9730.050875
C76: EBIT | G76: =G49-G74 -> 7123.300239 | H76: =H49-H74 -> 6920.952588 | I76: 6700.972233 | J76: 6462.136445 | K76: 6203.133607 | L76: 5922.55678 | M76: 5618.896785 | N76: 5290.534791 | O76: 4935.734358 | P76: 4552.632908 | Q76: 4139.232567 | R76: 3693.390347 | S76: 3212.807614 | T76: 2695.018785 | U76: 2137.379205 | V76: 1537.052147 | W76: 890.9948588
C77: Net Plant | F77: =F74 -> 100000 | G77: =F77-G74 -> 96836.30024 | H77: 93442.46893 | I77: 89801.766 | J77: 85896.23371 | K77: 81706.60802 | L77: 77212.22361 | M77: 72390.91196 | N77: 67218.89196 | O77: 61670.65264 | P77: 55718.82731 | Q77: 49334.05863 | R77: 42484.85374 | S77: 35137.42896 | T77: 27255.54314 | U77: 18800.3189 | V77: 9730.050875 | W77: 0
C79: Return on Capital | G79: =G76/F77 -> 0.07123300239 | H79: =H76/G77 -> 0.07147064242 | I79: 0.07171227719 | J79: 0.07196001518 | K79: 0.07221659599 | L79: 0.07248565231 | M79: 0.0727721146 | N79: 0.07308285871 | O79: 0.07342778517 | P79: 0.07382170795 | Q79: 0.07428786223 | R79: 0.07486491989 | S79: 0.07562242379 | T79: 0.07669937342 | U79: 0.07841998211 | V79: 0.08175670613 | W79: 0.09157144913
G81: 0 | H81: =G81+1 -> 1 | I81: =H81+1 -> 2 | J81: 3 | K81: 4 | L81: 5 | M81: 6 | N81: 7 | O81: 8 | P81: 9 | Q81: 10 | R81: 11 | S81: 12 | T81: 13 | U81: 14 | V81: 15 | W81: 16
G82: 17 | H82: =G82-1 -> 16 | I82: =H82-1 -> 15 | J82: 14 | K82: 13 | L82: 12 | M82: 11 | N82: 10 | O82: 9 | P82: 8 | Q82: 7 | R82: 6 | S82: 5 | T82: 4 | U82: 3 | V82: 2 | W82: 1
C83: Depreciation Rate on Remaining Balance | H83: =PPMT($E$73,H72-H81,H82,-1) -> 0.03504709808 | I83: =PPMT($E$73,I72-I81,I82,-1) -> 0.03896197273 | J83: 0.04349059567 | K83: 0.04877542949 | L83: 0.05500637599 | M83: 0.06244233651 | N83: 0.0714457086 | O83: 0.08253988075 | P83: 0.0965098482 | Q83: 0.1145890714 | R83: 0.1388331932 | S83: 0.1729422167 | T83: 0.2243159518 | U83: 0.3102203539 | V83: 0.4824528814 | W83: 1
C84: Economic Depreciation | H84: =H83*G77 -> 3393.831312 | I84: =I83*H77 -> 3640.702926 | J84: 3905.532295 | K84: 4189.625691 | L84: 4494.384402 | M84: 4821.311649 | N84: 5172.020002 | O84: 5548.239327 | P84: 5951.825324 | Q84: 6384.768682 | R84: 6849.204891 | S84: 7347.424781 | T84: 7881.885821 | U84: 8455.224239 | V84: 9070.268023 | W84: 9730.050875

Sheet Actual Financial Data
A2: Actual
B3: Last Year Actual | E3: ='General Inputs'!E3 -> 2013
B5: Year | F5: 2008 | G5: =F5+1 -> 2009 | H5: =G5+1 -> 2010 | I5: =H5+1 -> 2011 | J5: =I5+1 -> 2012 | K5: =J5+1 -> 2013
B6: Switch | G6: =G5<=$E$3 -> TRUE | H6: =H5<=$E$3 -> TRUE | I6: TRUE | J6: TRUE | K6: TRUE
B8: ='Original FM'!C5 -> Gross Energy | D8: MWH | G8: 135000 | H8: 140000 | I8: 138000 | J8: 136000 | K8: 135500
C9: ='Original FM'!C6 -> Energy for Outage | D9: MWH | G9: 11000 | H9: 12000 | I9: 12000 | J9: 11500 | K9: 12000
B10: ='Original FM'!C7 -> Net Energy | D10: MWH | G10: =G8-G9 -> 124000 | H10: =H8-H9 -> 128000 | I10: 126000 | J10: 124500 | K10: 123500
B12: Revenue and Expense
B13: ='Original FM'!C10 -> Price of Energy | D13: RM/MWH | G13: 150 | H13: =G13*1.02 -> 153 | I13: =H13*1.02 -> 156.06 | J13: 159.1812 | K13: 162.364824
B14: Revenue | D14: RM 000's | G14: =G13*G10/1000 -> 18600 | H14: =H13*H10/1000 -> 19584 | I14: 19663.56 | J14: 19818.0594 | K14: 20052.05576
B16: ='Original FM'!C13 -> Royalty Expense | D16: RM 000's | G16: 1500 | H16: 1400 | I16: 1350 | J16: 1400 | K16: 1340
B17: ='Original FM'!C14 -> Labour at Plant - Operations | D17: RM 000's | G17: 3100 | H17: 3500 | I17: 2800 | J17: 3005 | K17: 3030
B18: ='Original FM'!C15 -> Materials for Maintenance | D18: RM 000's | G18: 905 | H18: 700 | I18: 650 | J18: 400 | K18: 450
B19: ='Original FM'!C16 -> Labour for Maintenance | D19: RM 000's | G19: 3040 | H19: 2700 | I19: 2600 | J19: 3100 | K19: 3500
B20: ='Original FM'!C17 -> Other Admin Expense | D20: RM 000's | G20: 650 | H20: 630 | I20: 640 | J20: 800 | K20: 620
B21: ='Original FM'!C18 -> Insurance Expense | D21: RM 000's | G21: 1250 | H21: 1500 | I21: 1400 | J21: 1305 | K21: 1402
B22: Total Expense | D22: RM 000's | G22: =SUM(G16:G21) -> 10445 | H22: =SUM(H16:H21) -> 10430 | I22: 9440 | J22: 10010 | K22: 10342
B24: EBITDA | G24: =G14-G22 -> 8155 | H24: =H14-H22 -> 9154 | I24: 10223.56 | J24: 9808.0594 | K24: 9710.055764
B26: On-Going Capital Expenditure | D26: RM 000's | G26: 30 | H26: 0 | I26: 450 | J26: 470 | K26: 700
B27: Remaining Life | G27: 17 | H27: =G27-1 -> 16 | I27: =H27-1 -> 15 | J27: 14 | K27: 13
B28: Depreciation Rate | G28: =1/G27 -> 0.05882352941 | H28: =1/H27 -> 0.0625 | I28: 0.06666666667 | J28: 0.07142857143 | K28: 0.07692307692
B29: Depreciaiton Expense | G29: =G28*F32 -> 6764.705882 | H29: =H28*G32 -> 6764.705882 | I29: 6764.705882 | J29: 6764.705882 | K29: 6764.705882
A31: Balance Sheet
B32: Net plant balance | F32: 115000 | G32: =F32-G29 -> 108235.2941 | H32: =G32-H29 -> 101470.5882 | I32: 94705.88235 | J32: 87941.17647 | K32: 81176.47059
B33: Debt | F33: 80000 | G33: 74666.66667 | H33: 69333.33333 | I33: 64000 | J33: 58666.66667 | K33: 53333.33333
B34: Equity balance | F34: =F32-F33 -> 35000 | G34: =G32-G33 -> 33568.62745 | H34: 32137.2549 | I34: 30705.88235 | J34: 29274.5098 | K34: 27843.13725

Sheet Change Analysis
C3: Year | D3: 2011
C4: Match | D4: =MATCH(D3,F6:J6,0) -> 3
F5: Actual vs Financial Model Forecast
D6: =INDEX(F6:J6,$D$4) -> 2011 | F6: ='Original FM'!G3 -> 2009 | G6: ='Original FM'!H3 -> 2010 | H6: ='Original FM'!I3 -> 2011 | I6: ='Original FM'!J3 -> 2012 | J6: ='Original FM'!K3 -> 2013
C7: EBITDA in FM | D7: =INDEX(F7:J7,$D$4) -> 10341.67516 | F7: ='Original FM'!G21 -> 10287 | G7: ='Original FM'!H21 -> 10314.7839 | H7: ='Original FM'!I21 -> 10341.67516 | I7: ='Original FM'!J21 -> 10367.66874 | J7: ='Original FM'!K21 -> 10392.7593
C8: Reduced Revenue | D8: =INDEX(F8:J8,$D$4) -> -1231.477263 | F8: ='Actual Financial Data'!G14-'Original FM'!G11 -> -2100 | G8: ='Actual Financial Data'!H14-'Original FM'!H11 -> -1213.29 | H8: ='Actual Financial Data'!I14-'Original FM'!I11 -> -1231.477263 | I8: ='Actual Financial Data'!J14-'Original FM'!J11 -> -1175.184538 | J8: ='Actual Financial Data'!K14-'Original FM'!K11 -> -1039.856421
C9: Sub Total
C10: Royalty Expense | D10: =INDEX(F10:J10,$D$4) -> 530.5533537 | F10: ='Original FM'!G13-'Actual Financial Data'!G16 -> 363 | G10: ='Original FM'!H13-'Actual Financial Data'!H16 -> 471.7561 | H10: ='Original FM'!I13-'Actual Financial Data'!I16 -> 530.5533537 | I10: ='Original FM'!J13-'Actual Financial Data'!J16 -> 489.3919544 | J10: ='Original FM'!K13-'Actual Financial Data'!K16 -> 558.2720966
C11: Labour at Plant - Operations | D11: 496.72 | F11: ='Original FM'!G14-'Actual Financial Data'!G17 -> 100 | G11: ='Original FM'!H14-'Actual Financial Data'!H17 -> -252 | H11: ='Original FM'!I14-'Actual Financial Data'!I17 -> 496.72 | I11: ='Original FM'!J14-'Actual Financial Data'!J17 -> 341.1708 | J11: ='Original FM'!K14-'Actual Financial Data'!K17 -> 366.363362
C12: Materials for Maintenance | D12: 118.32 | F12: ='Original FM'!G15-'Actual Financial Data'!G18 -> -105 | G12: ='Original FM'!H15-'Actual Financial Data'!H18 -> 84 | H12: ='Original FM'!I15-'Actual Financial Data'!I18 -> 118.32 | I12: ='Original FM'!J15-'Actual Financial Data'!J18 -> 352.9536 | J12: ='Original FM'!K15-'Actual Financial Data'!K18 -> 287.894528
C13: Labour for Maintenance | D13: -49.75 | F13: ='Original FM'!G16-'Actual Financial Data'!G19 -> -540 | G13: ='Original FM'!H16-'Actual Financial Data'!H19 -> -175 | H13: ='Original FM'!I16-'Actual Financial Data'!I19 -> -49.75 | I13: ='Original FM'!J16-'Actual Financial Data'!J19 -> -524.2475 | J13: ='Original FM'!K16-'Actual Financial Data'!K19 -> -898.489975
C14: Other Admin Expense | D14: 117.51875 | F14: ='Original FM'!G17-'Actual Financial Data'!G20 -> 100 | G14: ='Original FM'!H17-'Actual Financial Data'!H20 -> 123.75 | H14: ='Original FM'!I17-'Actual Financial Data'!I20 -> 117.51875 | I14: ='Original FM'!J17-'Actual Financial Data'!J20 -> -38.69365625 | J14: ='Original FM'!K17-'Actual Financial Data'!K20 -> 145.1128755
C15: Insurance Expense | D15: -100 | F15: ='Original FM'!G18-'Actual Financial Data'!G21 -> 50 | G15: ='Original FM'!H18-'Actual Financial Data'!H21 -> -200 | H15: ='Original FM'!I18-'Actual Financial Data'!I21 -> -100 | I15: ='Original FM'!J18-'Actual Financial Data'!J21 -> -5 | J15: ='Original FM'!K18-'Actual Financial Data'!K21 -> -102
C16: EBITDA Actual | F16: =SUM(F7:F15) -> 8155 | G16: =SUM(G7:G15) -> 9154 | H16: 10223.56 | I16: 9808.0594 | J16: 9710.055764
C18: Check | F18: =F16='Actual Financial Data'!G24 -> TRUE | G18: =G16='Actual Financial Data'!H24 -> TRUE | H18: =H16='Actual Financial Data'!I24 -> TRUE | I18: =I16='Actual Financial Data'!J24 -> TRUE | J18: =J16='Actual Financial Data'!K24 -> TRUE
C21: Comparison of Financial Model with Actuals for | F21: =D3 -> 2011

Sheet Revised Forecast
B1: Last Year Actual | L1: ='Original FM'!G3 -> 2009 | M1: ='Original FM'!H3 -> 2010 | N1: ='Original FM'!I3 -> 2011 | O1: ='Original FM'!J3 -> 2012 | P1: ='Original FM'!K3 -> 2013 | Q1: ='Original FM'!L3 -> 2014 | R1: ='Original FM'!M3 -> 2015 | S1: ='Original FM'!N3 -> 2016 | T1: ='Original FM'!O3 -> 2017 | U1: ='Original FM'!P3 -> 2018 | V1: ='Original FM'!Q3 -> 2019 | W1: ='Original FM'!R3 -> 2020 | X1: ='Original FM'!S3 -> 2021 | Y1: ='Original FM'!T3 -> 2022 | Z1: ='Original FM'!U3 -> 2023 | AA1: ='Original FM'!V3 -> 2024 | AB1: ='Original FM'!W3 -> 2025
B2: Historic Switch | D2: 2013 | L2: =L1<=$D$2 -> TRUE | M2: TRUE | N2: TRUE | O2: TRUE | P2: TRUE | Q2: FALSE | R2: FALSE | S2: FALSE | T2: FALSE | U2: FALSE | V2: FALSE | W2: FALSE | X2: FALSE | Y2: FALSE | Z2: FALSE | AA2: FALSE | AB2: FALSE
A4: Production, Revenues and Expense
F5: Code | G5: Avg Hist | H5: Last His | I5: Input | J5: Growth
B6: Gross Energy | D6: MWH | E6: Financial Model | F6: =MATCH(E6,'Graph Data from Match'!$C$113:$C$117,0) -> 3 | G6: =AVERAGEIF('Actual Financial Data'!$6:$6,TRUE,'Actual Financial Data'!8:8) -> 136900 | H6: =SUMIF('Actual Financial Data'!$5:$5,'Actual Financial Data'!$E$3,'Actual Financial Data'!8:8) -> 135500 | I6: 136000 | J6: -0.01 | L6: =IF(L$2,'Actual Financial Data'!G8,CHOOSE($F6,$G6,$H6,'Original FM'!G5,$I6,L61)*(1+$J6)) -> 135000 | M6: =IF(M2,'Actual Financial Data'!H8,CHOOSE($F6,$G6,$H$6,'Original FM'!H5,$I6,M61)) -> 140000 | N6: =IF(N2,'Actual Financial Data'!I8,CHOOSE($F6,$G6,$H$6,'Original FM'!I5,$I6,N61)) -> 138000 | O6: =IF(O2,'Actual Financial Data'!J8,CHOOSE($F6,$G6,$H$6,'Original FM'!J5,$I6,O61)) -> 136000 | P6: =IF(P2,'Actual Financial Data'!K8,CHOOSE($F6,$G6,$H$6,'Original FM'!K5,$I6,P61)) -> 135500 | Q6: =IF(Q2,'Actual Financial Data'!L8,CHOOSE($F6,$G6,$H$6,'Original FM'!L5,$I6,Q61)) -> 139082.4754 | R6: =IF(R2,'Actual Financial Data'!M8,CHOOSE($F6,$G6,$H$6,'Original FM'!M5,$I6,R61)) -> 136996.2382 | S6: =IF(S2,'Actual Financial Data'!N8,CHOOSE($F6,$G6,$H$6,'Original FM'!N5,$I6,S61)) -> 134941.2947 | T6: =IF(T2,'Actual Financial Data'!O8,CHOOSE($F6,$G6,$H$6,'Original FM'!O5,$I6,T61)) -> 132917.1752 | U6: =IF(U2,'Actual Financial Data'!P8,CHOOSE($F6,$G6,$H$6,'Original FM'!P5,$I6,U61)) -> 130923.4176 | V6: =IF(V2,'Actual Financial Data'!Q8,CHOOSE($F6,$G6,$H$6,'Original FM'!Q5,$I6,V61)) -> 128959.5663 | W6: =IF(W2,'Actual Financial Data'!R8,CHOOSE($F6,$G6,$H$6,'Original FM'!R5,$I6,W61)) -> 127025.1728 | X6: =IF(X2,'Actual Financial Data'!S8,CHOOSE($F6,$G6,$H$6,'Original FM'!S5,$I6,X61)) -> 125119.7953 | Y6: =IF(Y2,'Actual Financial Data'!T8,CHOOSE($F6,$G6,$H$6,'Original FM'!T5,$I6,Y61)) -> 123242.9983 | Z6: =IF(Z2,'Actual Financial Data'!U8,CHOOSE($F6,$G6,$H$6,'Original FM'!U5,$I6,Z61)) -> 121394.3533 | AA6: =IF(AA2,'Actual Financial Data'!V8,CHOOSE($F6,$G6,$H$6,'Original FM'!V5,$I6,AA61)) -> 119573.438 | AB6: =IF(AB2,'Actual Financial Data'!W8,CHOOSE($F6,$G6,$H$6,'Original FM'!W5,$I6,AB61)) -> 117779.8365
B7: Energy for Outage | D7: MWH | E7: Last History | F7: =MATCH(E7,'Graph Data from Match'!$C$113:$C$117,0) -> 2 | G7: =AVERAGEIF('Actual Financial Data'!$6:$6,TRUE,'Actual Financial Data'!9:9) -> 11700 | H7: =SUMIF('Actual Financial Data'!$5:$5,'Actual Financial Data'!$E$3,'Actual Financial Data'!9:9) -> 12000 | I7: 11600 | J7: -0.005 | L7: =IF(L$2,'Actual Financial Data'!G9,CHOOSE($F7,$G7,$H7,'Original FM'!G6,$I7,L62)*(1+$J7)) -> 11000 | M7: =IF(M$2,'Actual Financial Data'!H9,CHOOSE($F7,$G7,$H7,'Original FM'!H6,$I7,M62)*(1+$J7)) -> 12000 | N7: =IF(N$2,'Actual Financial Data'!I9,CHOOSE($F7,$G7,$H7,'Original FM'!I6,$I7,N62)*(1+$J7)) -> 12000 | O7: =IF(O$2,'Actual Financial Data'!J9,CHOOSE($F7,$G7,$H7,'Original FM'!J6,$I7,O62)*(1+$J7)) -> 11500 | P7: =IF(P$2,'Actual Financial Data'!K9,CHOOSE($F7,$G7,$H7,'Original FM'!K6,$I7,P62)*(1+$J7)) -> 12000 | Q7: =IF(Q$2,'Actual Financial Data'!L9,CHOOSE($F7,$G7,$H7,'Original FM'!L6,$I7,Q62)*(1+$J7)) -> 11940 | R7: =IF(R$2,'Actual Financial Data'!M9,CHOOSE($F7,$G7,$H7,'Original FM'!M6,$I7,R62)*(1+$J7)) -> 11940 | S7: =IF(S$2,'Actual Financial Data'!N9,CHOOSE($F7,$G7,$H7,'Original FM'!N6,$I7,S62)*(1+$J7)) -> 11940 | T7: =IF(T$2,'Actual Financial Data'!O9,CHOOSE($F7,$G7,$H7,'Original FM'!O6,$I7,T62)*(1+$J7)) -> 11940 | U7: =IF(U$2,'Actual Financial Data'!P9,CHOOSE($F7,$G7,$H7,'Original FM'!P6,$I7,U62)*(1+$J7)) -> 11940 | V7: =IF(V$2,'Actual Financial Data'!Q9,CHOOSE($F7,$G7,$H7,'Original FM'!Q6,$I7,V62)*(1+$J7)) -> 11940 | W7: =IF(W$2,'Actual Financial Data'!R9,CHOOSE($F7,$G7,$H7,'Original FM'!R6,$I7,W62)*(1+$J7)) -> 11940 | X7: =IF(X$2,'Actual Financial Data'!S9,CHOOSE($F7,$G7,$H7,'Original FM'!S6,$I7,X62)*(1+$J7)) -> 11940 | Y7: =IF(Y$2,'Actual Financial Data'!T9,CHOOSE($F7,$G7,$H7,'Original FM'!T6,$I7,Y62)*(1+$J7)) -> 11940 | Z7: =IF(Z$2,'Actual Financial Data'!U9,CHOOSE($F7,$G7,$H7,'Original FM'!U6,$I7,Z62)*(1+$J7)) -> 11940 | AA7: =IF(AA$2,'Actual Financial Data'!V9,CHOOSE($F7,$G7,$H7,'Original FM'!V6,$I7,AA62)*(1+$J7)) -> 11940 | AB7: =IF(AB$2,'Actual Financial Data'!W9,CHOOSE($F7,$G7,$H7,'Original FM'!W6,$I7,AB62)*(1+$J7)) -> 11940
B8: Net Energy | D8: MWH | L8: =L6-L7 -> 124000 | M8: 128000 | N8: 126000 | O8: 124500 | P8: 123500 | Q8: 127142.4754 | R8: 125056.2382 | S8: 123001.2947 | T8: 120977.1752 | U8: 118983.4176 | V8: 117019.5663 | W8: 115085.1728 | X8: 113179.7953 | Y8: 111302.9983 | Z8: 109454.3533 | AA8: 107633.438 | AB8: 105839.8365
B10: Revenue and Expense
B11: Price of Energy | D11: RM/MWH | E11: Last History | F11: =MATCH(E11,'Graph Data from Match'!$C$113:$C$117,0) -> 2 | G11: =AVERAGEIF('Actual Financial Data'!$6:$6,TRUE,'Actual Financial Data'!13:13) -> 156.1212048 | H11: =SUMIF('Actual Financial Data'!$5:$5,'Actual Financial Data'!$E$3,'Actual Financial Data'!13:13) -> 162.364824 | L11: =IF(L$2,'Actual Financial Data'!G13,CHOOSE($F11,$G11,$H11,'Original FM'!G10,$I11,L66)*(1+$J11)) -> 150 | M11: =IF(M$2,'Actual Financial Data'!H13,CHOOSE($F11,$G11,$H11,'Original FM'!H10,$I11,M66)*(1+$J11)) -> 153 | N11: =IF(N$2,'Actual Financial Data'!I13,CHOOSE($F11,$G11,$H11,'Original FM'!I10,$I11,N66)*(1+$J11)) -> 156.06 | O11: =IF(O$2,'Actual Financial Data'!J13,CHOOSE($F11,$G11,$H11,'Original FM'!J10,$I11,O66)*(1+$J11)) -> 159.1812 | P11: =IF(P$2,'Actual Financial Data'!K13,CHOOSE($F11,$G11,$H11,'Original FM'!K10,$I11,P66)*(1+$J11)) -> 162.364824 | Q11: =IF(Q$2,'Actual Financial Data'!L13,CHOOSE($F11,$G11,$H11,'Original FM'!L10,$I11,Q66)*(1+$J11)) -> 162.364824 | R11: =IF(R$2,'Actual Financial Data'!M13,CHOOSE($F11,$G11,$H11,'Original FM'!M10,$I11,R66)*(1+$J11)) -> 162.364824 | S11: =IF(S$2,'Actual Financial Data'!N13,CHOOSE($F11,$G11,$H11,'Original FM'!N10,$I11,S66)*(1+$J11)) -> 162.364824 | T11: =IF(T$2,'Actual Financial Data'!O13,CHOOSE($F11,$G11,$H11,'Original FM'!O10,$I11,T66)*(1+$J11)) -> 162.364824 | U11: =IF(U$2,'Actual Financial Data'!P13,CHOOSE($F11,$G11,$H11,'Original FM'!P10,$I11,U66)*(1+$J11)) -> 162.364824 | V11: =IF(V$2,'Actual Financial Data'!Q13,CHOOSE($F11,$G11,$H11,'Original FM'!Q10,$I11,V66)*(1+$J11)) -> 162.364824 | W11: =IF(W$2,'Actual Financial Data'!R13,CHOOSE($F11,$G11,$H11,'Original FM'!R10,$I11,W66)*(1+$J11)) -> 162.364824 | X11: =IF(X$2,'Actual Financial Data'!S13,CHOOSE($F11,$G11,$H11,'Original FM'!S10,$I11,X66)*(1+$J11)) -> 162.364824 | Y11: =IF(Y$2,'Actual Financial Data'!T13,CHOOSE($F11,$G11,$H11,'Original FM'!T10,$I11,Y66)*(1+$J11)) -> 162.364824 | Z11: =IF(Z$2,'Actual Financial Data'!U13,CHOOSE($F11,$G11,$H11,'Original FM'!U10,$I11,Z66)*(1+$J11)) -> 162.364824 | AA11: =IF(AA$2,'Actual Financial Data'!V13,CHOOSE($F11,$G11,$H11,'Original FM'!V10,$I11,AA66)*(1+$J11)) -> 162.364824 | AB11: =IF(AB$2,'Actual Financial Data'!W13,CHOOSE($F11,$G11,$H11,'Original FM'!W10,$I11,AB66)*(1+$J11)) -> 162.364824
B12: Revenue | D12: RM 000's | L12: =L11*L8/1000 -> 18600 | M12: 19584 | N12: 19663.56 | O12: 19818.0594 | P12: 20052.05576 | Q12: 20643.46563 | R12: 20304.73411 | S12: 19971.08356 | T12: 19642.43776 | U12: 19318.72166 | V12: 18999.86129 | W12: 18685.78383 | X12: 18376.41754 | Y12: 18071.69173 | Z12: 17771.53682 | AA12: 17475.88423 | AB12: 17184.66642
B14: Royalty Expense | D14: RM 000's | E14: Simple Input | F14: =MATCH(E14,'Graph Data from Match'!$C$113:$C$117,0) -> 4 | G14: =AVERAGEIF('Actual Financial Data'!$6:$6,TRUE,'Actual Financial Data'!16:16) -> 1398 | H14: =SUMIF('Actual Financial Data'!$5:$5,'Actual Financial Data'!$E$3,'Actual Financial Data'!16:16) -> 1340 | I14: 1360 | J14: -0.008 | L14: =IF(L$2,'Actual Financial Data'!G16,CHOOSE($F14,$G14,$H14,'Original FM'!G13,$I14,L63)*(1+$J14)) -> 1500 | M14: =IF(M$2,'Actual Financial Data'!H16,CHOOSE($F14,$G14,$H14,'Original FM'!H13,$I14,M63)*(1+$J14)) -> 1400 | N14: =IF(N$2,'Actual Financial Data'!I16,CHOOSE($F14,$G14,$H14,'Original FM'!I13,$I14,N63)*(1+$J14)) -> 1350 | O14: =IF(O$2,'Actual Financial Data'!J16,CHOOSE($F14,$G14,$H14,'Original FM'!J13,$I14,O63)*(1+$J14)) -> 1400 | P14: =IF(P$2,'Actual Financial Data'!K16,CHOOSE($F14,$G14,$H14,'Original FM'!K13,$I14,P63)*(1+$J14)) -> 1340 | Q14: =IF(Q$2,'Actual Financial Data'!L16,CHOOSE($F14,$G14,$H14,'Original FM'!L13,$I14,Q63)*(1+$J14)) -> 1349.12 | R14: =IF(R$2,'Actual Financial Data'!M16,CHOOSE($F14,$G14,$H14,'Original FM'!M13,$I14,R63)*(1+$J14)) -> 1349.12 | S14: =IF(S$2,'Actual Financial Data'!N16,CHOOSE($F14,$G14,$H14,'Original FM'!N13,$I14,S63)*(1+$J14)) -> 1349.12 | T14: =IF(T$2,'Actual Financial Data'!O16,CHOOSE($F14,$G14,$H14,'Original FM'!O13,$I14,T63)*(1+$J14)) -> 1349.12 | U14: =IF(U$2,'Actual Financial Data'!P16,CHOOSE($F14,$G14,$H14,'Original FM'!P13,$I14,U63)*(1+$J14)) -> 1349.12 | V14: =IF(V$2,'Actual Financial Data'!Q16,CHOOSE($F14,$G14,$H14,'Original FM'!Q13,$I14,V63)*(1+$J14)) -> 1349.12 | W14: =IF(W$2,'Actual Financial Data'!R16,CHOOSE($F14,$G14,$H14,'Original FM'!R13,$I14,W63)*(1+$J14)) -> 1349.12 | X14: =IF(X$2,'Actual Financial Data'!S16,CHOOSE($F14,$G14,$H14,'Original FM'!S13,$I14,X63)*(1+$J14)) -> 1349.12 | Y14: =IF(Y$2,'Actual Financial Data'!T16,CHOOSE($F14,$G14,$H14,'Original FM'!T13,$I14,Y63)*(1+$J14)) -> 1349.12 | Z14: =IF(Z$2,'Actual Financial Data'!U16,CHOOSE($F14,$G14,$H14,'Original FM'!U13,$I14,Z63)*(1+$J14)) -> 1349.12 | AA14: =IF(AA$2,'Actual Financial Data'!V16,CHOOSE($F14,$G14,$H14,'Original FM'!V13,$I14,AA63)*(1+$J14)) -> 1349.12 | AB14: =IF(AB$2,'Actual Financial Data'!W16,CHOOSE($F14,$G14,$H14,'Original FM'!W13,$I14,AB63)*(1+$J14)) -> 1349.12
B15: Labour at Plant - Operations | D15: RM 000's | E15: Simple Input | F15: =MATCH(E15,'Graph Data from Match'!$C$113:$C$117,0) -> 4 | G15: =AVERAGEIF('Actual Financial Data'!$6:$6,TRUE,'Actual Financial Data'!17:17) -> 3087 | H15: =SUMIF('Actual Financial Data'!$5:$5,'Actual Financial Data'!$E$3,'Actual Financial Data'!17:17) -> 3030 | I15: 3040 | J15: 0.015 | L15: =IF(L$2,'Actual Financial Data'!G17,CHOOSE($F15,$G15,$H15,'Original FM'!G14,$I15,L64)*(1+$J15)) -> 3100 | M15: =IF(M$2,'Actual Financial Data'!H17,CHOOSE($F15,$G15,$H15,'Original FM'!H14,$I15,M64)*(1+$J15)) -> 3500 | N15: =IF(N$2,'Actual Financial Data'!I17,CHOOSE($F15,$G15,$H15,'Original FM'!I14,$I15,N64)*(1+$J15)) -> 2800 | O15: =IF(O$2,'Actual Financial Data'!J17,CHOOSE($F15,$G15,$H15,'Original FM'!J14,$I15,O64)*(1+$J15)) -> 3005 | P15: =IF(P$2,'Actual Financial Data'!K17,CHOOSE($F15,$G15,$H15,'Original FM'!K14,$I15,P64)*(1+$J15)) -> 3030 | Q15: =IF(Q$2,'Actual Financial Data'!L17,CHOOSE($F15,$G15,$H15,'Original FM'!L14,$I15,Q64)*(1+$J15)) -> 3085.6 | R15: =IF(R$2,'Actual Financial Data'!M17,CHOOSE($F15,$G15,$H15,'Original FM'!M14,$I15,R64)*(1+$J15)) -> 3085.6 | S15: =IF(S$2,'Actual Financial Data'!N17,CHOOSE($F15,$G15,$H15,'Original FM'!N14,$I15,S64)*(1+$J15)) -> 3085.6 | T15: =IF(T$2,'Actual Financial Data'!O17,CHOOSE($F15,$G15,$H15,'Original FM'!O14,$I15,T64)*(1+$J15)) -> 3085.6 | U15: =IF(U$2,'Actual Financial Data'!P17,CHOOSE($F15,$G15,$H15,'Original FM'!P14,$I15,U64)*(1+$J15)) -> 3085.6 | V15: =IF(V$2,'Actual Financial Data'!Q17,CHOOSE($F15,$G15,$H15,'Original FM'!Q14,$I15,V64)*(1+$J15)) -> 3085.6 | W15: =IF(W$2,'Actual Financial Data'!R17,CHOOSE($F15,$G15,$H15,'Original FM'!R14,$I15,W64)*(1+$J15)) -> 3085.6 | X15: =IF(X$2,'Actual Financial Data'!S17,CHOOSE($F15,$G15,$H15,'Original FM'!S14,$I15,X64)*(1+$J15)) -> 3085.6 | Y15: =IF(Y$2,'Actual Financial Data'!T17,CHOOSE($F15,$G15,$H15,'Original FM'!T14,$I15,Y64)*(1+$J15)) -> 3085.6 | Z15: =IF(Z$2,'Actual Financial Data'!U17,CHOOSE($F15,$G15,$H15,'Original FM'!U14,$I15,Z64)*(1+$J15)) -> 3085.6 | AA15: =IF(AA$2,'Actual Financial Data'!V17,CHOOSE($F15,$G15,$H15,'Original FM'!V14,$I15,AA64)*(1+$J15)) -> 3085.6 | AB15: =IF(AB$2,'Actual Financial Data'!W17,CHOOSE($F15,$G15,$H15,'Original FM'!W14,$I15,AB64)*(1+$J15)) -> 3085.6
B16: Materials for Maintenance | D16: RM 000's | E16: Simple Input | F16: =MATCH(E16,'Graph Data from Match'!$C$113:$C$117,0) -> 4 | G16: =AVERAGEIF('Actual Financial Data'!$6:$6,TRUE,'Actual Financial Data'!18:18) -> 621 | H16: =SUMIF('Actual Financial Data'!$5:$5,'Actual Financial Data'!$E$3,'Actual Financial Data'!18:18) -> 450 | I16: 860 | J16: 0 | L16: =IF(L$2,'Actual Financial Data'!G18,CHOOSE($F16,$G16,$H16,'Original FM'!G15,$I16,L65)*(1+$J16)) -> 905 | M16: =IF(M$2,'Actual Financial Data'!H18,CHOOSE($F16,$G16,$H16,'Original FM'!H15,$I16,M65)*(1+$J16)) -> 700 | N16: =IF(N$2,'Actual Financial Data'!I18,CHOOSE($F16,$G16,$H16,'Original FM'!I15,$I16,N65)*(1+$J16)) -> 650 | O16: =IF(O$2,'Actual Financial Data'!J18,CHOOSE($F16,$G16,$H16,'Original FM'!J15,$I16,O65)*(1+$J16)) -> 400 | P16: =IF(P$2,'Actual Financial Data'!K18,CHOOSE($F16,$G16,$H16,'Original FM'!K15,$I16,P65)*(1+$J16)) -> 450 | Q16: =IF(Q$2,'Actual Financial Data'!L18,CHOOSE($F16,$G16,$H16,'Original FM'!L15,$I16,Q65)*(1+$J16)) -> 860 | R16: =IF(R$2,'Actual Financial Data'!M18,CHOOSE($F16,$G16,$H16,'Original FM'!M15,$I16,R65)*(1+$J16)) -> 860 | S16: =IF(S$2,'Actual Financial Data'!N18,CHOOSE($F16,$G16,$H16,'Original FM'!N15,$I16,S65)*(1+$J16)) -> 860 | T16: =IF(T$2,'Actual Financial Data'!O18,CHOOSE($F16,$G16,$H16,'Original FM'!O15,$I16,T65)*(1+$J16)) -> 860 | U16: =IF(U$2,'Actual Financial Data'!P18,CHOOSE($F16,$G16,$H16,'Original FM'!P15,$I16,U65)*(1+$J16)) -> 860 | V16: =IF(V$2,'Actual Financial Data'!Q18,CHOOSE($F16,$G16,$H16,'Original FM'!Q15,$I16,V65)*(1+$J16)) -> 860 | W16: =IF(W$2,'Actual Financial Data'!R18,CHOOSE($F16,$G16,$H16,'Original FM'!R15,$I16,W65)*(1+$J16)) -> 860 | X16: =IF(X$2,'Actual Financial Data'!S18,CHOOSE($F16,$G16,$H16,'Original FM'!S15,$I16,X65)*(1+$J16)) -> 860 | Y16: =IF(Y$2,'Actual Financial Data'!T18,CHOOSE($F16,$G16,$H16,'Original FM'!T15,$I16,Y65)*(1+$J16)) -> 860 | Z16: =IF(Z$2,'Actual Financial Data'!U18,CHOOSE($F16,$G16,$H16,'Original FM'!U15,$I16,Z65)*(1+$J16)) -> 860 | AA16: =IF(AA$2,'Actual Financial Data'!V18,CHOOSE($F16,$G16,$H16,'Original FM'!V15,$I16,AA65)*(1+$J16)) -> 860 | AB16: =IF(AB$2,'Actual Financial Data'!W18,CHOOSE($F16,$G16,$H16,'Original FM'!W15,$I16,AB65)*(1+$J16)) -> 860
B17: Labour for Maintenance | D17: RM 000's | E17: Simple Input | F17: =MATCH(E17,'Graph Data from Match'!$C$113:$C$117,0) -> 4 | G17: =AVERAGEIF('Actual Financial Data'!$6:$6,TRUE,'Actual Financial Data'!19:19) -> 2988 | H17: =SUMIF('Actual Financial Data'!$5:$5,'Actual Financial Data'!$E$3,'Actual Financial Data'!19:19) -> 3500 | I17: 3440 | J17: 0.013 | L17: =IF(L$2,'Actual Financial Data'!G19,CHOOSE($F17,$G17,$H17,'Original FM'!G16,$I17,L66)*(1+$J17)) -> 3040 | M17: =IF(M$2,'Actual Financial Data'!H19,CHOOSE($F17,$G17,$H17,'Original FM'!H16,$I17,M66)*(1+$J17)) -> 2700 | N17: =IF(N$2,'Actual Financial Data'!I19,CHOOSE($F17,$G17,$H17,'Original FM'!I16,$I17,N66)*(1+$J17)) -> 2600 | O17: =IF(O$2,'Actual Financial Data'!J19,CHOOSE($F17,$G17,$H17,'Original FM'!J16,$I17,O66)*(1+$J17)) -> 3100 | P17: =IF(P$2,'Actual Financial Data'!K19,CHOOSE($F17,$G17,$H17,'Original FM'!K16,$I17,P66)*(1+$J17)) -> 3500 | Q17: =IF(Q$2,'Actual Financial Data'!L19,CHOOSE($F17,$G17,$H17,'Original FM'!L16,$I17,Q66)*(1+$J17)) -> 3484.72 | R17: =IF(R$2,'Actual Financial Data'!M19,CHOOSE($F17,$G17,$H17,'Original FM'!M16,$I17,R66)*(1+$J17)) -> 3484.72 | S17: =IF(S$2,'Actual Financial Data'!N19,CHOOSE($F17,$G17,$H17,'Original FM'!N16,$I17,S66)*(1+$J17)) -> 3484.72 | T17: =IF(T$2,'Actual Financial Data'!O19,CHOOSE($F17,$G17,$H17,'Original FM'!O16,$I17,T66)*(1+$J17)) -> 3484.72 | U17: =IF(U$2,'Actual Financial Data'!P19,CHOOSE($F17,$G17,$H17,'Original FM'!P16,$I17,U66)*(1+$J17)) -> 3484.72 | V17: =IF(V$2,'Actual Financial Data'!Q19,CHOOSE($F17,$G17,$H17,'Original FM'!Q16,$I17,V66)*(1+$J17)) -> 3484.72 | W17: =IF(W$2,'Actual Financial Data'!R19,CHOOSE($F17,$G17,$H17,'Original FM'!R16,$I17,W66)*(1+$J17)) -> 3484.72 | X17: =IF(X$2,'Actual Financial Data'!S19,CHOOSE($F17,$G17,$H17,'Original FM'!S16,$I17,X66)*(1+$J17)) -> 3484.72 | Y17: =IF(Y$2,'Actual Financial Data'!T19,CHOOSE($F17,$G17,$H17,'Original FM'!T16,$I17,Y66)*(1+$J17)) -> 3484.72 | Z17: =IF(Z$2,'Actual Financial Data'!U19,CHOOSE($F17,$G17,$H17,'Original FM'!U16,$I17,Z66)*(1+$J17)) -> 3484.72 | AA17: =IF(AA$2,'Actual Financial Data'!V19,CHOOSE($F17,$G17,$H17,'Original FM'!V16,$I17,AA66)*(1+$J17)) -> 3484.72 | AB17: =IF(AB$2,'Actual Financial Data'!W19,CHOOSE($F17,$G17,$H17,'Original FM'!W16,$I17,AB66)*(1+$J17)) -> 3484.72
B18: Other Admin Expense | D18: RM 000's | E18: Simple Input | F18: =MATCH(E18,'Graph Data from Match'!$C$113:$C$117,0) -> 4 | G18: =AVERAGEIF('Actual Financial Data'!$6:$6,TRUE,'Actual Financial Data'!20:20) -> 668 | H18: =SUMIF('Actual Financial Data'!$5:$5,'Actual Financial Data'!$E$3,'Actual Financial Data'!20:20) -> 620 | I18: 625 | J18: 0.005 | L18: =IF(L$2,'Actual Financial Data'!G20,CHOOSE($F18,$G18,$H18,'Original FM'!G17,$I18,L67)*(1+$J18)) -> 650 | M18: =IF(M$2,'Actual Financial Data'!H20,CHOOSE($F18,$G18,$H18,'Original FM'!H17,$I18,M67)*(1+$J18)) -> 630 | N18: =IF(N$2,'Actual Financial Data'!I20,CHOOSE($F18,$G18,$H18,'Original FM'!I17,$I18,N67)*(1+$J18)) -> 640 | O18: =IF(O$2,'Actual Financial Data'!J20,CHOOSE($F18,$G18,$H18,'Original FM'!J17,$I18,O67)*(1+$J18)) -> 800 | P18: =IF(P$2,'Actual Financial Data'!K20,CHOOSE($F18,$G18,$H18,'Original FM'!K17,$I18,P67)*(1+$J18)) -> 620 | Q18: =IF(Q$2,'Actual Financial Data'!L20,CHOOSE($F18,$G18,$H18,'Original FM'!L17,$I18,Q67)*(1+$J18)) -> 628.125 | R18: =IF(R$2,'Actual Financial Data'!M20,CHOOSE($F18,$G18,$H18,'Original FM'!M17,$I18,R67)*(1+$J18)) -> 628.125 | S18: =IF(S$2,'Actual Financial Data'!N20,CHOOSE($F18,$G18,$H18,'Original FM'!N17,$I18,S67)*(1+$J18)) -> 628.125 | T18: =IF(T$2,'Actual Financial Data'!O20,CHOOSE($F18,$G18,$H18,'Original FM'!O17,$I18,T67)*(1+$J18)) -> 628.125 | U18: =IF(U$2,'Actual Financial Data'!P20,CHOOSE($F18,$G18,$H18,'Original FM'!P17,$I18,U67)*(1+$J18)) -> 628.125 | V18: =IF(V$2,'Actual Financial Data'!Q20,CHOOSE($F18,$G18,$H18,'Original FM'!Q17,$I18,V67)*(1+$J18)) -> 628.125 | W18: =IF(W$2,'Actual Financial Data'!R20,CHOOSE($F18,$G18,$H18,'Original FM'!R17,$I18,W67)*(1+$J18)) -> 628.125 | X18: =IF(X$2,'Actual Financial Data'!S20,CHOOSE($F18,$G18,$H18,'Original FM'!S17,$I18,X67)*(1+$J18)) -> 628.125 | Y18: =IF(Y$2,'Actual Financial Data'!T20,CHOOSE($F18,$G18,$H18,'Original FM'!T17,$I18,Y67)*(1+$J18)) -> 628.125 | Z18: =IF(Z$2,'Actual Financial Data'!U20,CHOOSE($F18,$G18,$H18,'Original FM'!U17,$I18,Z67)*(1+$J18)) -> 628.125 | AA18: =IF(AA$2,'Actual Financial Data'!V20,CHOOSE($F18,$G18,$H18,'Original FM'!V17,$I18,AA67)*(1+$J18)) -> 628.125 | AB18: =IF(AB$2,'Actual Financial Data'!W20,CHOOSE($F18,$G18,$H18,'Original FM'!W17,$I18,AB67)*(1+$J18)) -> 628.125
B19: Insurance Expense | D19: RM 000's | E19: Simple Input | F19: =MATCH(E19,'Graph Data from Match'!$C$113:$C$117,0) -> 4 | G19: =AVERAGEIF('Actual Financial Data'!$6:$6,TRUE,'Actual Financial Data'!21:21) -> 1371.4 | H19: =SUMIF('Actual Financial Data'!$5:$5,'Actual Financial Data'!$E$3,'Actual Financial Data'!21:21) -> 1402 | I19: 1320 | J19: 0 | L19: =IF(L$2,'Actual Financial Data'!G21,CHOOSE($F19,$G19,$H19,'Original FM'!G18,$I19,L68)*(1+$J19)) -> 1250 | M19: =IF(M$2,'Actual Financial Data'!H21,CHOOSE($F19,$G19,$H19,'Original FM'!H18,$I19,M68)*(1+$J19)) -> 1500 | N19: =IF(N$2,'Actual Financial Data'!I21,CHOOSE($F19,$G19,$H19,'Original FM'!I18,$I19,N68)*(1+$J19)) -> 1400 | O19: =IF(O$2,'Actual Financial Data'!J21,CHOOSE($F19,$G19,$H19,'Original FM'!J18,$I19,O68)*(1+$J19)) -> 1305 | P19: =IF(P$2,'Actual Financial Data'!K21,CHOOSE($F19,$G19,$H19,'Original FM'!K18,$I19,P68)*(1+$J19)) -> 1402 | Q19: =IF(Q$2,'Actual Financial Data'!L21,CHOOSE($F19,$G19,$H19,'Original FM'!L18,$I19,Q68)*(1+$J19)) -> 1320 | R19: =IF(R$2,'Actual Financial Data'!M21,CHOOSE($F19,$G19,$H19,'Original FM'!M18,$I19,R68)*(1+$J19)) -> 1320 | S19: =IF(S$2,'Actual Financial Data'!N21,CHOOSE($F19,$G19,$H19,'Original FM'!N18,$I19,S68)*(1+$J19)) -> 1320 | T19: =IF(T$2,'Actual Financial Data'!O21,CHOOSE($F19,$G19,$H19,'Original FM'!O18,$I19,T68)*(1+$J19)) -> 1320 | U19: =IF(U$2,'Actual Financial Data'!P21,CHOOSE($F19,$G19,$H19,'Original FM'!P18,$I19,U68)*(1+$J19)) -> 1320 | V19: =IF(V$2,'Actual Financial Data'!Q21,CHOOSE($F19,$G19,$H19,'Original FM'!Q18,$I19,V68)*(1+$J19)) -> 1320 | W19: =IF(W$2,'Actual Financial Data'!R21,CHOOSE($F19,$G19,$H19,'Original FM'!R18,$I19,W68)*(1+$J19)) -> 1320 | X19: =IF(X$2,'Actual Financial Data'!S21,CHOOSE($F19,$G19,$H19,'Original FM'!S18,$I19,X68)*(1+$J19)) -> 1320 | Y19: =IF(Y$2,'Actual Financial Data'!T21,CHOOSE($F19,$G19,$H19,'Original FM'!T18,$I19,Y68)*(1+$J19)) -> 1320 | Z19: =IF(Z$2,'Actual Financial Data'!U21,CHOOSE($F19,$G19,$H19,'Original FM'!U18,$I19,Z68)*(1+$J19)) -> 1320 | AA19: =IF(AA$2,'Actual Financial Data'!V21,CHOOSE($F19,$G19,$H19,'Original FM'!V18,$I19,AA68)*(1+$J19)) -> 1320 | AB19: =IF(AB$2,'Actual Financial Data'!W21,CHOOSE($F19,$G19,$H19,'Original FM'!W18,$I19,AB68)*(1+$J19)) -> 1320
B20: Total Expense | D20: RM 000's | G20: =AVERAGEIF('Actual Financial Data'!$6:$6,TRUE,'Actual Financial Data'!22:22) -> 10133.4 | H20: =SUMIF('Actual Financial Data'!$5:$5,'Actual Financial Data'!$E$3,'Actual Financial Data'!22:22) -> 10342 | L20: =SUM(L14:L19) -> 10445 | M20: 10430 | N20: 9440 | O20: 10010 | P20: 10342 | Q20: 10727.565 | R20: 10727.565 | S20: 10727.565 | T20: 10727.565 | U20: 10727.565 | V20: 10727.565 | W20: 10727.565 | X20: 10727.565 | Y20: 10727.565 | Z20: 10727.565 | AA20: 10727.565 | AB20: 10727.565
B22: EBITDA | L22: =L12-L20 -> 8155 | M22: 9154 | N22: 10223.56 | O22: 9808.0594 | P22: 9710.055764 | Q22: 9915.900634 | R22: 9577.169109 | S22: 9243.518558 | T22: 8914.872764 | U22: 8591.156658 | V22: 8272.296293 | W22: 7958.218834 | X22: 7648.852536 | Y22: 7344.126733 | Z22: 7043.971817 | AA22: 6748.319225 | AB22: 6457.101422
B24: On-Going Capital Expenditure | D24: RM 000's | E24: Simple Input | F24: =MATCH(E24,'Graph Data from Match'!$C$113:$C$117,0) -> 4 | G24: =AVERAGEIF('Actual Financial Data'!$6:$6,TRUE,'Actual Financial Data'!26:26) -> 330 | H24: =SUMIF('Actual Financial Data'!$5:$5,'Actual Financial Data'!$E$3,'Actual Financial Data'!26:26) -> 700 | I24: 1200 | J24: 0 | L24: =IF(L$2,'Actual Financial Data'!G26,CHOOSE($F24,$G24,$H24,'Original FM'!G23,$I24,#REF!)*(1+$J24)) -> 30 | M24: =IF(M$2,'Actual Financial Data'!H26,CHOOSE($F24,$G24,$H24,'Original FM'!H23,$I24,#REF!)*(1+$J24)) -> 0 | N24: =IF(N$2,'Actual Financial Data'!I26,CHOOSE($F24,$G24,$H24,'Original FM'!I23,$I24,#REF!)*(1+$J24)) -> 450 | O24: =IF(O$2,'Actual Financial Data'!J26,CHOOSE($F24,$G24,$H24,'Original FM'!J23,$I24,#REF!)*(1+$J24)) -> 470 | P24: =IF(P$2,'Actual Financial Data'!K26,CHOOSE($F24,$G24,$H24,'Original FM'!K23,$I24,#REF!)*(1+$J24)) -> 700 | Q24: =IF(Q$2,'Actual Financial Data'!L26,CHOOSE($F24,$G24,$H24,'Original FM'!L23,$I24,#REF!)*(1+$J24)) -> 1200 | R24: =IF(R$2,'Actual Financial Data'!M26,CHOOSE($F24,$G24,$H24,'Original FM'!M23,$I24,#REF!)*(1+$J24)) -> 1200 | S24: =IF(S$2,'Actual Financial Data'!N26,CHOOSE($F24,$G24,$H24,'Original FM'!N23,$I24,#REF!)*(1+$J24)) -> 1200 | T24: =IF(T$2,'Actual Financial Data'!O26,CHOOSE($F24,$G24,$H24,'Original FM'!O23,$I24,#REF!)*(1+$J24)) -> 1200 | U24: =IF(U$2,'Actual Financial Data'!P26,CHOOSE($F24,$G24,$H24,'Original FM'!P23,$I24,#REF!)*(1+$J24)) -> 1200 | V24: =IF(V$2,'Actual Financial Data'!Q26,CHOOSE($F24,$G24,$H24,'Original FM'!Q23,$I24,#REF!)*(1+$J24)) -> 1200 | W24: =IF(W$2,'Actual Financial Data'!R26,CHOOSE($F24,$G24,$H24,'Original FM'!R23,$I24,#REF!)*(1+$J24)) -> 1200 | X24: =IF(X$2,'Actual Financial Data'!S26,CHOOSE($F24,$G24,$H24,'Original FM'!S23,$I24,#REF!)*(1+$J24)) -> 1200 | Y24: =IF(Y$2,'Actual Financial Data'!T26,CHOOSE($F24,$G24,$H24,'Original FM'!T23,$I24,#REF!)*(1+$J24)) -> 1200 | Z24: =IF(Z$2,'Actual Financial Data'!U26,CHOOSE($F24,$G24,$H24,'Original FM'!U23,$I24,#REF!)*(1+$J24)) -> 1200 | AA24: =IF(AA$2,'Actual Financial Data'!V26,CHOOSE($F24,$G24,$H24,'Original FM'!V23,$I24,#REF!)*(1+$J24)) -> 1200 | AB24: =IF(AB$2,'Actual Financial Data'!W26,CHOOSE($F24,$G24,$H24,'Original FM'!W23,$I24,#REF!)*(1+$J24)) -> 1200
B25: Remaining Life | L25: 17 | M25: =L25-1 -> 16 | N25: 15 | O25: 14 | P25: 13 | Q25: 12 | R25: 11 | S25: 10 | T25: 9 | U25: 8 | V25: 7 | W25: 6 | X25: 5 | Y25: 4 | Z25: 3 | AA25: 2 | AB25: 1
B26: Depreciation Rate | L26: =1/L25 -> 0.05882352941 | M26: 0.0625 | N26: 0.06666666667 | O26: 0.07142857143 | P26: 0.07692307692 | Q26: 0.08333333333 | R26: 0.09090909091 | S26: 0.1 | T26: 0.1111111111 | U26: 0.125 | V26: 0.1428571429 | W26: 0.1666666667 | X26: 0.2 | Y26: 0.25 | Z26: 0.3333333333 | AA26: 0.5 | AB26: 1
B27: Depreciaiton Expense | E27: Last History | F27: =MATCH(E27,'Graph Data from Match'!$C$113:$C$117,0) -> 2 | L27: =IF(L2,'Actual Financial Data'!G29,L26*K46) -> 6764.705882 | M27: =IF(M2,'Actual Financial Data'!H29,M26*L46) -> 6764.705882 | N27: =IF(N2,'Actual Financial Data'!I29,N26*M46) -> 6764.705882 | O27: =IF(O2,'Actual Financial Data'!J29,O26*N46) -> 6764.705882 | P27: =IF(P2,'Actual Financial Data'!K29,P26*O46) -> 6764.705882 | Q27: =IF(Q2,'Actual Financial Data'!L29,Q26*P46) -> 6764.705882 | R27: =IF(R2,'Actual Financial Data'!M29,R26*Q46) -> 6873.796791 | S27: =IF(S2,'Actual Financial Data'!N29,S26*R46) -> 6993.796791 | T27: =IF(T2,'Actual Financial Data'!O29,T26*S46) -> 7127.130125 | U27: =IF(U2,'Actual Financial Data'!P29,U26*T46) -> 7277.130125 | V27: =IF(V2,'Actual Financial Data'!Q29,V26*U46) -> 7448.558696 | W27: =IF(W2,'Actual Financial Data'!R29,W26*V46) -> 7648.558696 | X27: =IF(X2,'Actual Financial Data'!S29,X26*W46) -> 7888.558696 | Y27: =IF(Y2,'Actual Financial Data'!T29,Y26*X46) -> 8188.558696 | Z27: =IF(Z2,'Actual Financial Data'!U29,Z26*Y46) -> 8588.558696 | AA27: =IF(AA2,'Actual Financial Data'!V29,AA26*Z46) -> 9188.558696 | AB27: =IF(AB2,'Actual Financial Data'!W29,AB26*AA46) -> 10388.5587
A29: Profit and Loss
B30: EBITDA | D30: RM 000's | L30: =L22 -> 8155 | M30: 9154 | N30: 10223.56 | O30: 9808.0594 | P30: 9710.055764 | Q30: 9915.900634 | R30: 9577.169109 | S30: 9243.518558 | T30: 8914.872764 | U30: 8591.156658 | V30: 8272.296293 | W30: 7958.218834 | X30: 7648.852536 | Y30: 7344.126733 | Z30: 7043.971817 | AA30: 6748.319225 | AB30: 6457.101422
B31: Depreciation | D31: RM 000's | L31: =L27 -> 6764.705882 | M31: 6764.705882 | N31: 6764.705882 | O31: 6764.705882 | P31: 6764.705882 | Q31: 6764.705882 | R31: 6873.796791 | S31: 6993.796791 | T31: 7127.130125 | U31: 7277.130125 | V31: 7448.558696 | W31: 7648.558696 | X31: 7888.558696 | Y31: 8188.558696 | Z31: 8588.558696 | AA31: 9188.558696 | AB31: 10388.5587
B32: EBIT | L32: =L30-L31 -> 1390.294118 | M32: 2389.294118 | N32: 3458.854118 | O32: 3043.353518 | P32: 2945.349882 | Q32: 3151.194752 | R32: 2703.372318 | S32: 2249.721766 | T32: 1787.74264 | U32: 1314.026533 | V32: 823.737597 | W32: 309.6601376 | X32: -239.7061599 | Y32: -844.4319629 | Z32: -1544.586879 | AA32: -2440.239471 | AB32: -3931.457274
B33: Interest | D33: RM 000's | L33: ='Original FM'!G45 -> 2880 | M33: ='Original FM'!H45 -> 2688 | N33: ='Original FM'!I45 -> 2496 | O33: ='Original FM'!J45 -> 2304 | P33: ='Original FM'!K45 -> 2112 | Q33: ='Original FM'!L45 -> 1920 | R33: ='Original FM'!M45 -> 1728 | S33: ='Original FM'!N45 -> 1536 | T33: ='Original FM'!O45 -> 1344 | U33: ='Original FM'!P45 -> 1152 | V33: ='Original FM'!Q45 -> 960 | W33: ='Original FM'!R45 -> 768 | X33: ='Original FM'!S45 -> 576 | Y33: ='Original FM'!T45 -> 384 | Z33: ='Original FM'!U45 -> 192 | AA33: ='Original FM'!V45 -> 0 | AB33: ='Original FM'!W45 -> 0
B34: EBT=PAT | D34: RM 000's | L34: =L32-L33 -> -1489.705882 | M34: -298.7058824 | N34: 962.8541176 | O34: 739.3535176 | P34: 833.3498816 | Q34: 1231.194752 | R34: 975.372318 | S34: 713.7217664 | T34: 443.7426397 | U34: 162.0265332 | V34: -136.262403 | W34: -458.3398624 | X34: -815.7061599 | Y34: -1228.431963 | Z34: -1736.586879 | AA34: -2440.239471 | AB34: -3931.457274
A36: Cashflow Statement
B37: EBITDA | D37: RM 000's | L37: =L30 -> 8155 | M37: 9154 | N37: 10223.56 | O37: 9808.0594 | P37: 9710.055764 | Q37: 9915.900634 | R37: 9577.169109 | S37: 9243.518558 | T37: 8914.872764 | U37: 8591.156658 | V37: 8272.296293 | W37: 7958.218834 | X37: 7648.852536 | Y37: 7344.126733 | Z37: 7043.971817 | AA37: 6748.319225 | AB37: 6457.101422
B38: Less: On-Going Cap Exp | D38: RM 000's | L38: =L24 -> 30 | M38: 0 | N38: 450 | O38: 470 | P38: 700 | Q38: 1200 | R38: 1200 | S38: 1200 | T38: 1200 | U38: 1200 | V38: 1200 | W38: 1200 | X38: 1200 | Y38: 1200 | Z38: 1200 | AA38: 1200 | AB38: 1200
B39: Debt Service | D39: RM 000's | L39: ='Original FM'!G50 -> 8213.333333 | M39: ='Original FM'!H50 -> 8021.333333 | N39: ='Original FM'!I50 -> 7829.333333 | O39: ='Original FM'!J50 -> 7637.333333 | P39: ='Original FM'!K50 -> 7445.333333 | Q39: ='Original FM'!L50 -> 7253.333333 | R39: ='Original FM'!M50 -> 7061.333333 | S39: ='Original FM'!N50 -> 6869.333333 | T39: ='Original FM'!O50 -> 6677.333333 | U39: ='Original FM'!P50 -> 6485.333333 | V39: ='Original FM'!Q50 -> 6293.333333 | W39: ='Original FM'!R50 -> 6101.333333 | X39: ='Original FM'!S50 -> 5909.333333 | Y39: ='Original FM'!T50 -> 5717.333333 | Z39: ='Original FM'!U50 -> 5525.333333 | AA39: ='Original FM'!V50 -> 0 | AB39: ='Original FM'!W50 -> 0
B40: Dividend | L40: =L37-L38-L39 -> -88.33333333 | M40: 1132.666667 | N40: 1944.226667 | O40: 1700.726067 | P40: 1564.722431 | Q40: 1462.567301 | R40: 1315.835776 | S40: 1174.185224 | T40: 1037.539431 | U40: 905.8233247 | V40: 778.9629598 | W40: 656.8855005 | X40: 539.519203 | Y40: 426.7933999 | Z40: 318.638484 | AA40: 5548.319225 | AB40: 5257.101422
B41: Equity Cashflow | D41: RM 000's | L41: =L40 -> -88.33333333 | M41: 1132.666667 | N41: 1944.226667 | O41: 1700.726067 | P41: 1564.722431 | Q41: 1462.567301 | R41: 1315.835776 | S41: 1174.185224 | T41: 1037.539431 | U41: 905.8233247 | V41: 778.9629598 | W41: 656.8855005 | X41: 539.519203 | Y41: 426.7933999 | Z41: 318.638484 | AA41: 5548.319225 | AB41: 5257.101422
A44: Balance Sheet
B45: Assets
C46: Net Plant Balance | K46: ='Actual Financial Data'!F32 -> 115000 | L46: =IF(L2,'Actual Financial Data'!G32,'Revised Forecast'!K46+'Revised Forecast'!L24-'Revised Forecast'!L27) -> 108235.2941 | M46: =IF(M2,'Actual Financial Data'!H32,'Revised Forecast'!L46+'Revised Forecast'!M24-'Revised Forecast'!M27) -> 101470.5882 | N46: =IF(N2,'Actual Financial Data'!I32,'Revised Forecast'!M46+'Revised Forecast'!N24-'Revised Forecast'!N27) -> 94705.88235 | O46: =IF(O2,'Actual Financial Data'!J32,'Revised Forecast'!N46+'Revised Forecast'!O24-'Revised Forecast'!O27) -> 87941.17647 | P46: =IF(P2,'Actual Financial Data'!K32,'Revised Forecast'!O46+'Revised Forecast'!P24-'Revised Forecast'!P27) -> 81176.47059 | Q46: =IF(Q2,'Actual Financial Data'!L32,'Revised Forecast'!P46+'Revised Forecast'!Q24-'Revised Forecast'!Q27) -> 75611.76471 | R46: =IF(R2,'Actual Financial Data'!M32,'Revised Forecast'!Q46+'Revised Forecast'!R24-'Revised Forecast'!R27) -> 69937.96791 | S46: =IF(S2,'Actual Financial Data'!N32,'Revised Forecast'!R46+'Revised Forecast'!S24-'Revised Forecast'!S27) -> 64144.17112 | T46: =IF(T2,'Actual Financial Data'!O32,'Revised Forecast'!S46+'Revised Forecast'!T24-'Revised Forecast'!T27) -> 58217.041 | U46: =IF(U2,'Actual Financial Data'!P32,'Revised Forecast'!T46+'Revised Forecast'!U24-'Revised Forecast'!U27) -> 52139.91087 | V46: =IF(V2,'Actual Financial Data'!Q32,'Revised Forecast'!U46+'Revised Forecast'!V24-'Revised Forecast'!V27) -> 45891.35218 | W46: =IF(W2,'Actual Financial Data'!R32,'Revised Forecast'!V46+'Revised Forecast'!W24-'Revised Forecast'!W27) -> 39442.79348 | X46: =IF(X2,'Actual Financial Data'!S32,'Revised Forecast'!W46+'Revised Forecast'!X24-'Revised Forecast'!X27) -> 32754.23478 | Y46: =IF(Y2,'Actual Financial Data'!T32,'Revised Forecast'!X46+'Revised Forecast'!Y24-'Revised Forecast'!Y27) -> 25765.67609 | Z46: =IF(Z2,'Actual Financial Data'!U32,'Revised Forecast'!Y46+'Revised Forecast'!Z24-'Revised Forecast'!Z27) -> 18377.11739 | AA46: =IF(AA2,'Actual Financial Data'!V32,'Revised Forecast'!Z46+'Revised Forecast'!AA24-'Revised Forecast'!AA27) -> 10388.5587 | AB46: =IF(AB2,'Actual Financial Data'!W32,'Revised Forecast'!AA46+'Revised Forecast'!AB24-'Revised Forecast'!AB27) -> 1200
B48: Liabilities and Capital | K48: ='Original FM'!F60 -> 80000 | L48: ='Original FM'!G60 -> 74666.66667 | M48: ='Original FM'!H60 -> 69333.33333 | N48: ='Original FM'!I60 -> 64000 | O48: ='Original FM'!J60 -> 58666.66667 | P48: ='Original FM'!K60 -> 53333.33333 | Q48: ='Original FM'!L60 -> 48000 | R48: ='Original FM'!M60 -> 42666.66667 | S48: ='Original FM'!N60 -> 37333.33333 | T48: ='Original FM'!O60 -> 32000 | U48: ='Original FM'!P60 -> 26666.66667 | V48: ='Original FM'!Q60 -> 21333.33333 | W48: ='Original FM'!R60 -> 16000 | X48: ='Original FM'!S60 -> 10666.66667 | Y48: ='Original FM'!T60 -> 5333.333333 | Z48: ='Original FM'!U60 -> 0 | AA48: ='Original FM'!V60 -> 0 | AB48: ='Original FM'!W60 -> 0
C49: Debt | K49: =K46-K48 -> 35000 | L49: 33568.62745 | M49: 32137.2549 | N49: 30705.88235 | O49: 29274.5098 | P49: 27843.13725 | Q49: 27611.76471 | R49: 27271.30125 | S49: 26810.83779 | T49: 26217.041 | U49: 25473.24421 | V49: 24558.01884 | W49: 23442.79348 | X49: 22087.56812 | Y49: 20432.34276 | Z49: 18377.11739 | AA49: 10388.5587 | AB49: 1200
C50: Equity | K50: =SUM(K48:K49) -> 115000 | L50: 108235.2941 | M50: 101470.5882 | N50: 94705.88235 | O50: 87941.17647 | P50: 81176.47059 | Q50: 75611.76471 | R50: 69937.96791 | S50: 64144.17112 | T50: 58217.041 | U50: 52139.91087 | V50: 45891.35218 | W50: 39442.79348 | X50: 32754.23478 | Y50: 25765.67609 | Z50: 18377.11739 | AA50: 10388.5587 | AB50: 1200
A53: Ratios
B54: Return on Assets (ROA) | L54: =L32/K46 -> 0.01208951407 | M54: 0.022075 | N54: 0.03408725797 | O54: 0.0321347887 | P54: 0.0334922729 | Q54: 0.03881906578 | R54: 0.03575332924 | S54: 0.03216738824 | T54: 0.02787069516 | U54: 0.02257116663 | V54: 0.01579860002 | W54: 0.006747679528 | X54: -0.006077311943 | Y54: -0.02578084845 | Z54: -0.05994746164 | AA54: -0.1327868468 | AB54: -0.3784410706
B55: Return on Equity (ROE) | L55: =L34/K49 -> -0.04256302521 | M55: -0.008898364486 | N55: 0.02996068334 | O55: 0.02407856284 | P55: 0.02846674077 | Q55: 0.04421896643 | R55: 0.0353245194 | S55: 0.02617116653 | T55: 0.01655086809 | U55: 0.006180199102 | V55: -0.005349236318 | W55: -0.01866355203 | X55: -0.03479560405 | Y55: -0.05561644253 | Z55: -0.0849920589 | AA55: -0.1327868468 | AB55: -0.3784410706
B56: DSCR
A59: Detailed Forecast/Graph List
B61: Gross Energy | Q61: 136000 | R61: =Q61*1.01 -> 137360 | S61: =R61*0.98 -> 134612.8 | T61: =S61*0.98 -> 131920.544 | U61: =T61*0.98 -> 129282.1331 | V61: =U61*0.99 -> 127989.3118 | W61: 126709.4187 | X61: 125442.3245 | Y61: 124187.9012 | Z61: 122946.0222 | AA61: 121716.562 | AB61: 120499.3964
B62: Energy for Outage | Q62: =Q61*0.085 -> 11560 | R62: 11675.6 | S62: 11442.088 | T62: 11213.24624 | U62: 10988.98132 | V62: 10879.0915 | W62: 10770.30059 | X62: 10662.59758 | Y62: 10555.97161 | Z62: 10450.41189 | AA62: 10345.90777 | AB62: 10242.44869
B63: Royalty Expense | Q63: 1349.12 | R63: =Q63 -> 1349.12 | S63: 1349.12 | T63: 1349.12 | U63: 1349.12 | V63: 1349.12 | W63: 1349.12 | X63: 1349.12 | Y63: 1349.12 | Z63: 1349.12 | AA63: 1349.12 | AB63: 1349.12
B64: Labour at Plant - Operations | Q64: 3085.6 | R64: =Q64 -> 3085.6 | S64: 3085.6 | T64: 3085.6 | U64: 3085.6 | V64: 3085.6 | W64: 3085.6 | X64: 3085.6 | Y64: 3085.6 | Z64: 3085.6 | AA64: 3085.6 | AB64: 3085.6
B65: Materials for Maintenance | Q65: 860 | R65: =Q65 -> 860 | S65: 860 | T65: 860 | U65: 860 | V65: 860 | W65: 860 | X65: 860 | Y65: 860 | Z65: 860 | AA65: 860 | AB65: 860
B66: Labour for Maintenance | Q66: 3484.72 | R66: =Q66 -> 3484.72 | S66: 3484.72 | T66: 3484.72 | U66: 3484.72 | V66: 3484.72 | W66: 3484.72 | X66: 3484.72 | Y66: 3484.72 | Z66: 3484.72 | AA66: 3484.72 | AB66: 3484.72
B67: Other Admin Expense | Q67: 628.125 | R67: =Q67 -> 628.125 | S67: 628.125 | T67: 628.125 | U67: 628.125 | V67: 628.125 | W67: 628.125 | X67: 628.125 | Y67: 628.125 | Z67: 628.125 | AA67: 628.125 | AB67: 628.125
B68: Insurance Expense | Q68: 1320 | R68: =Q68 -> 1320 | S68: 1320 | T68: 1320 | U68: 1320 | V68: 1320 | W68: 1320 | X68: 1320 | Y68: 1320 | Z68: 1320 | AA68: 1320 | AB68: 1320
B69: On-Going Capital Expenditure | Q69: 100 | R69: 0 | S69: 1200 | T69: 3000 | U69: 0 | V69: 20 | W69: 6000 | X69: 0 | Y69: =X69 -> 0 | Z69: =Y69 -> 0 | AA69: =Z69 -> 0 | AB69: =AA69 -> 0

Sheet Graph Data from Match
A1: Detailed Forecast/Graph List | P1: Raw Data
D2: FM Row | F2: Actual Col B | G2: Actual Col C | H2: Final Match Actual | P2: Pct of Energy
B3: Gross Energy | D3: =MATCH(B3,'Original FM'!C:C,0) -> 5 | F3: =MATCH(B3,'Actual Financial Data'!B:B,0) -> 8 | G3: =MATCH(B3,'Actual Financial Data'!C:C,0) ->  | H3: =na_sum(F3:G3) -> 8 | P3: Pct of Revenue
B4: Energy for Outage | D4: =MATCH(B4,'Original FM'!C:C,0) -> 6 | F4: =MATCH(B4,'Actual Financial Data'!B:B,0) ->  | G4: =MATCH(B4,'Actual Financial Data'!C:C,0) -> 9 | H4: =na_sum(F4:G4) -> 9 | P4: Pct of Expense | R4: 1
B5: Royalty Expense | D5: =MATCH(B5,'Original FM'!C:C,0) -> 13 | F5: =MATCH(B5,'Actual Financial Data'!B:B,0) -> 16 | G5: =MATCH(B5,'Actual Financial Data'!C:C,0) ->  | H5: 16
B6: Labour at Plant - Operations | D6: =MATCH(B6,'Original FM'!C:C,0) -> 14 | F6: =MATCH(B6,'Actual Financial Data'!B:B,0) -> 17 | G6: =MATCH(B6,'Actual Financial Data'!C:C,0) ->  | H6: 17 | K6: Code Number | M6: 3
B7: Materials for Maintenance | D7: =MATCH(B7,'Original FM'!C:C,0) -> 15 | F7: =MATCH(B7,'Actual Financial Data'!B:B,0) -> 18 | G7: =MATCH(B7,'Actual Financial Data'!C:C,0) ->  | H7: 18 | O7: 2009 | P7: 2010 | Q7: 2011 | R7: 2012 | S7: 2013 | T7: 2014 | U7: 2015 | V7: 2016 | W7: 2017 | X7: 2018 | Y7: 2019 | Z7: 2020
B8: Labour for Maintenance | D8: =MATCH(B8,'Original FM'!C:C,0) -> 16 | F8: =MATCH(B8,'Actual Financial Data'!B:B,0) -> 19 | G8: =MATCH(B8,'Actual Financial Data'!C:C,0) ->  | H8: 19
B9: Other Admin Expense | D9: =MATCH(B9,'Original FM'!C:C,0) -> 17 | F9: =MATCH(B9,'Actual Financial Data'!B:B,0) -> 20 | G9: =MATCH(B9,'Actual Financial Data'!C:C,0) ->  | H9: 20 | K9: FM Row/Col | M9: =INDEX($D$3:$D$22,M6) -> 13 | O9: =MATCH(O7,'Original FM'!3:3,0) -> 7 | P9: =MATCH(P7,'Original FM'!3:3,0) -> 8 | Q9: =MATCH(Q7,'Original FM'!3:3,0) -> 9 | R9: =MATCH(R7,'Original FM'!3:3,0) -> 10 | S9: =MATCH(S7,'Original FM'!3:3,0) -> 11 | T9: =MATCH(T7,'Original FM'!3:3,0) -> 12 | U9: =MATCH(U7,'Original FM'!3:3,0) -> 13 | V9: =MATCH(V7,'Original FM'!3:3,0) -> 14 | W9: =MATCH(W7,'Original FM'!3:3,0) -> 15 | X9: =MATCH(X7,'Original FM'!3:3,0) -> 16 | Y9: =MATCH(Y7,'Original FM'!3:3,0) -> 17 | Z9: =MATCH(Z7,'Original FM'!3:3,0) -> 18
B10: Insurance Expense | D10: =MATCH(B10,'Original FM'!C:C,0) -> 18 | F10: =MATCH(B10,'Actual Financial Data'!B:B,0) -> 21 | G10: =MATCH(B10,'Actual Financial Data'!C:C,0) ->  | H10: 21 | K10: Acutal/Col | M10: =INDEX($H$3:$H$22,M6) -> 16 | O10: =MATCH(O7,'Actual Financial Data'!5:5,0) -> 7 | P10: =MATCH(P7,'Actual Financial Data'!5:5,0) -> 8 | Q10: =MATCH(Q7,'Actual Financial Data'!5:5,0) -> 9 | R10: =MATCH(R7,'Actual Financial Data'!5:5,0) -> 10 | S10: =MATCH(S7,'Actual Financial Data'!5:5,0) -> 11 | T10: =MATCH(T7,'Actual Financial Data'!5:5,0) ->  | U10: =MATCH(U7,'Actual Financial Data'!5:5,0) ->  | V10: =MATCH(V7,'Actual Financial Data'!5:5,0) ->  | W10: =MATCH(W7,'Actual Financial Data'!5:5,0) ->  | X10: =MATCH(X7,'Actual Financial Data'!5:5,0) ->  | Y10: =MATCH(Y7,'Actual Financial Data'!5:5,0) ->  | Z10: =MATCH(Z7,'Actual Financial Data'!5:5,0) -> 
B11: On-Going Capital Expenditure | D11: =MATCH(B11,'Original FM'!C:C,0) -> 23 | F11: =MATCH(B11,'Actual Financial Data'!B:B,0) -> 26 | G11: =MATCH(B11,'Actual Financial Data'!C:C,0) ->  | H11: 26
B12: Revenue | D12: =MATCH(B12,'Original FM'!C:C,0) -> 11 | F12: =MATCH(B12,'Actual Financial Data'!B:B,0) -> 14 | G12: =MATCH(B12,'Actual Financial Data'!C:C,0) ->  | H12: 14 | K12: =INDEX(B3:B22,$M$6) -> Royalty Expense
B13: ='Original FM'!C19 -> Total Expense | D13: =MATCH(B13,'Original FM'!C:C,0) -> 19 | F13: =MATCH(B13,'Actual Financial Data'!B:B,0) -> 22 | G13: =MATCH(B13,'Actual Financial Data'!C:C,0) ->  | H13: =na_sum(F13:G13) -> 22 | O13: =O7 -> 2009 | P13: =P7 -> 2010 | Q13: 2011 | R13: 2012 | S13: 2013 | T13: 2014 | U13: 2015 | V13: 2016 | W13: 2017 | X13: 2018 | Y13: 2019 | Z13: 2020
B14: EBITDA | D14: =MATCH(B14,'Original FM'!C:C,0) -> 21 | F14: =MATCH(B14,'Actual Financial Data'!B:B,0) -> 24 | G14: =MATCH(B14,'Actual Financial Data'!C:C,0) ->  | H14: =na_sum(F14:G14) -> 24 | K14: Financial Model | O14: =INDEX('Original FM'!$1:$1048576,'Graph Data from Match'!$M$9,'Graph Data from Match'!O9) -> 1863 | P14: =INDEX('Original FM'!$1:$1048576,'Graph Data from Match'!$M$9,'Graph Data from Match'!P9) -> 1871.7561 | Q14: =INDEX('Original FM'!$1:$1048576,'Graph Data from Match'!$M$9,'Graph Data from Match'!Q9) -> 1880.553354 | R14: =INDEX('Original FM'!$1:$1048576,'Graph Data from Match'!$M$9,'Graph Data from Match'!R9) -> 1889.391954 | S14: =INDEX('Original FM'!$1:$1048576,'Graph Data from Match'!$M$9,'Graph Data from Match'!S9) -> 1898.272097 | T14: =INDEX('Original FM'!$1:$1048576,'Graph Data from Match'!$M$9,'Graph Data from Match'!T9) -> 1907.193975 | U14: =INDEX('Original FM'!$1:$1048576,'Graph Data from Match'!$M$9,'Graph Data from Match'!U9) -> 1916.157787 | V14: =INDEX('Original FM'!$1:$1048576,'Graph Data from Match'!$M$9,'Graph Data from Match'!V9) -> 1925.163729 | W14: =INDEX('Original FM'!$1:$1048576,'Graph Data from Match'!$M$9,'Graph Data from Match'!W9) -> 1934.211998 | X14: =INDEX('Original FM'!$1:$1048576,'Graph Data from Match'!$M$9,'Graph Data from Match'!X9) -> 1943.302795 | Y14: =INDEX('Original FM'!$1:$1048576,'Graph Data from Match'!$M$9,'Graph Data from Match'!Y9) -> 1952.436318 | Z14: =INDEX('Original FM'!$1:$1048576,'Graph Data from Match'!$M$9,'Graph Data from Match'!Z9) -> 1961.612769
B15: Return on Assets (ROA) | D15: =MATCH(B15,'Original FM'!C:C,0) -> 68 | F15: =MATCH(B15,'Actual Financial Data'!B:B,0) ->  | G15: =MATCH(B15,'Actual Financial Data'!C:C,0) ->  | H15: 0 | K15: Actual | O15: =INDEX('Actual Financial Data'!$1:$1048576,'Graph Data from Match'!$M$10,'Graph Data from Match'!O10) -> 1500 | P15: =INDEX('Actual Financial Data'!$1:$1048576,'Graph Data from Match'!$M$10,'Graph Data from Match'!P10) -> 1400 | Q15: =INDEX('Actual Financial Data'!$1:$1048576,'Graph Data from Match'!$M$10,'Graph Data from Match'!Q10) -> 1350 | R15: =INDEX('Actual Financial Data'!$1:$1048576,'Graph Data from Match'!$M$10,'Graph Data from Match'!R10) -> 1400 | S15: =INDEX('Actual Financial Data'!$1:$1048576,'Graph Data from Match'!$M$10,'Graph Data from Match'!S10) -> 1340 | T15: =INDEX('Actual Financial Data'!$1:$1048576,'Graph Data from Match'!$M$10,'Graph Data from Match'!T10) ->  | U15: =INDEX('Actual Financial Data'!$1:$1048576,'Graph Data from Match'!$M$10,'Graph Data from Match'!U10) ->  | V15: =INDEX('Actual Financial Data'!$1:$1048576,'Graph Data from Match'!$M$10,'Graph Data from Match'!V10) ->  | W15: =INDEX('Actual Financial Data'!$1:$1048576,'Graph Data from Match'!$M$10,'Graph Data from Match'!W10) ->  | X15: =INDEX('Actual Financial Data'!$1:$1048576,'Graph Data from Match'!$M$10,'Graph Data from Match'!X10) ->  | Y15: =INDEX('Actual Financial Data'!$1:$1048576,'Graph Data from Match'!$M$10,'Graph Data from Match'!Y10) ->  | Z15: =INDEX('Actual Financial Data'!$1:$1048576,'Graph Data from Match'!$M$10,'Graph Data from Match'!Z10) -> 
B16: Return on Equity (ROE) | D16: =MATCH(B16,'Original FM'!C:C,0) -> 69 | F16: =MATCH(B16,'Actual Financial Data'!B:B,0) ->  | G16: =MATCH(B16,'Actual Financial Data'!C:C,0) ->  | H16: 0
B17: Depreciation | D17: =MATCH(B17,'Original FM'!C:C,0) -> 43 | F17: =MATCH(B17,'Actual Financial Data'!B:B,0) ->  | G17: =MATCH(B17,'Actual Financial Data'!C:C,0) ->  | H17: 0 | K17: =B3 -> Gross Energy | M17: =MATCH(K17,B3:B22,0) -> 1
B18: EBIT | D18: =MATCH(B18,'Original FM'!C:C,0) -> 44 | F18: =MATCH(B18,'Actual Financial Data'!B:B,0) ->  | G18: =MATCH(B18,'Actual Financial Data'!C:C,0) ->  | H18: 0
B19: Interest | D19: =MATCH(B19,'Original FM'!C:C,0) -> 45 | F19: =MATCH(B19,'Actual Financial Data'!B:B,0) ->  | G19: =MATCH(B19,'Actual Financial Data'!C:C,0) ->  | H19: 0 | K19: ="FM Row/Col - "&$K$17 -> FM Row/Col - Gross Energy | M19: =MATCH(K17,'Original FM'!C:C,0) -> 5 | O19: =O9 -> 7 | P19: =P9 -> 8 | Q19: 9 | R19: 10 | S19: 11 | T19: 12 | U19: 13 | V19: 14 | W19: 15 | X19: 16 | Y19: 17 | Z19: 18
B20: EBT=PAT | D20: =MATCH(B20,'Original FM'!C:C,0) -> 46 | F20: =MATCH(B20,'Actual Financial Data'!B:B,0) ->  | G20: =MATCH(B20,'Actual Financial Data'!C:C,0) ->  | H20: 0 | K20: ="Actual "&$K$17 -> Actual Gross Energy | M20: =MATCH(K17,'Actual Financial Data'!B:B) -> 8 | O20: =O10 -> 7 | P20: =P10 -> 8 | Q20: 9 | R20: 10 | S20: 11
B21: Dividend | D21: =MATCH(B21,'Original FM'!C:C,0) -> 51 | F21: =MATCH(B21,'Actual Financial Data'!B:B,0) ->  | G21: =MATCH(B21,'Actual Financial Data'!C:C,0) ->  | H21: 0
B22: DSCR | D22: =MATCH(B22,'Original FM'!C:C,0) -> 70 | F22: =MATCH(B22,'Actual Financial Data'!B:B,0) ->  | G22: =MATCH(B22,'Actual Financial Data'!C:C,0) ->  | H22: 0 | K22: Financial Model | O22: =INDEX('Original FM'!$1:$1048576,'Graph Data from Match'!$M$19,'Graph Data from Match'!O19) -> 150000 | P22: =INDEX('Original FM'!$1:$1048576,'Graph Data from Match'!$M$19,'Graph Data from Match'!P19) -> 147750 | Q22: =INDEX('Original FM'!$1:$1048576,'Graph Data from Match'!$M$19,'Graph Data from Match'!Q19) -> 145533.75 | R22: =INDEX('Original FM'!$1:$1048576,'Graph Data from Match'!$M$19,'Graph Data from Match'!R19) -> 143350.7437 | S22: =INDEX('Original FM'!$1:$1048576,'Graph Data from Match'!$M$19,'Graph Data from Match'!S19) -> 141200.4826 | T22: =INDEX('Original FM'!$1:$1048576,'Graph Data from Match'!$M$19,'Graph Data from Match'!T19) -> 139082.4754 | U22: =INDEX('Original FM'!$1:$1048576,'Graph Data from Match'!$M$19,'Graph Data from Match'!U19) -> 136996.2382 | V22: =INDEX('Original FM'!$1:$1048576,'Graph Data from Match'!$M$19,'Graph Data from Match'!V19) -> 134941.2947 | W22: =INDEX('Original FM'!$1:$1048576,'Graph Data from Match'!$M$19,'Graph Data from Match'!W19) -> 132917.1752 | X22: =INDEX('Original FM'!$1:$1048576,'Graph Data from Match'!$M$19,'Graph Data from Match'!X19) -> 130923.4176 | Y22: =INDEX('Original FM'!$1:$1048576,'Graph Data from Match'!$M$19,'Graph Data from Match'!Y19) -> 128959.5663 | Z22: =INDEX('Original FM'!$1:$1048576,'Graph Data from Match'!$M$19,'Graph Data from Match'!Z19) -> 127025.1728
K23: Actual | O23: =INDEX('Actual Financial Data'!$1:$1048576,'Graph Data from Match'!$M$20,'Graph Data from Match'!O20) -> 135000 | P23: =INDEX('Actual Financial Data'!$1:$1048576,'Graph Data from Match'!$M$20,'Graph Data from Match'!P20) -> 140000 | Q23: =INDEX('Actual Financial Data'!$1:$1048576,'Graph Data from Match'!$M$20,'Graph Data from Match'!Q20) -> 138000 | R23: =INDEX('Actual Financial Data'!$1:$1048576,'Graph Data from Match'!$M$20,'Graph Data from Match'!R20) -> 136000 | S23: =INDEX('Actual Financial Data'!$1:$1048576,'Graph Data from Match'!$M$20,'Graph Data from Match'!S20) -> 135500 | T23: =INDEX('Actual Financial Data'!$1:$1048576,'Graph Data from Match'!$M$20,'Graph Data from Match'!T20) ->  | U23: =INDEX('Actual Financial Data'!$1:$1048576,'Graph Data from Match'!$M$20,'Graph Data from Match'!U20) ->  | V23: =INDEX('Actual Financial Data'!$1:$1048576,'Graph Data from Match'!$M$20,'Graph Data from Match'!V20) ->  | W23: =INDEX('Actual Financial Data'!$1:$1048576,'Graph Data from Match'!$M$20,'Graph Data from Match'!W20) ->  | X23: =INDEX('Actual Financial Data'!$1:$1048576,'Graph Data from Match'!$M$20,'Graph Data from Match'!X20) ->  | Y23: =INDEX('Actual Financial Data'!$1:$1048576,'Graph Data from Match'!$M$20,'Graph Data from Match'!Y20) ->  | Z23: =INDEX('Actual Financial Data'!$1:$1048576,'Graph Data from Match'!$M$20,'Graph Data from Match'!Z20) -> 
K25: Pct of Gross Energy
K26: =K22 -> Financial Model | O26: =O14/O22 -> 0.01242 | P26: =P14/P22 -> 0.0126684 | Q26: 0.012921768 | R26: 0.01318020336 | S26: 0.01344380743 | T26: 0.01371268358 | U26: 0.01398693725 | V26: 0.01426667599 | W26: 0.01455200951 | X26: 0.0148430497 | Y26: 0.0151399107 | Z26: 0.01544270891
K27: =K23 -> Actual | O27: =O15/O23 -> 0.01111111111 | P27: =P15/P23 -> 0.01 | Q27: 0.009782608696 | R27: 0.01029411765 | S27: 0.009889298893
K29: =B12 -> Revenue
K31: ="FM Row/Col - "&$K$29 -> FM Row/Col - Revenue | M31: =MATCH(K29,'Original FM'!C:C,0) -> 11 | O31: =O19 -> 7 | P31: =P19 -> 8 | Q31: 9 | R31: 10 | S31: 11 | T31: 12 | U31: 13 | V31: 14 | W31: 15 | X31: 16 | Y31: 17 | Z31: 18
K32: ="Actual "&$K$29 -> Actual Revenue | M32: =MATCH(K29,'Actual Financial Data'!B:B,0) -> 14 | O32: =O20 -> 7 | P32: =P20 -> 8 | Q32: 9 | R32: 10 | S32: 11
K33: =K26 -> Financial Model | O33: =INDEX('Original FM'!$1:$1048576,'Graph Data from Match'!$M$31,'Graph Data from Match'!O31) -> 20700 | P33: =INDEX('Original FM'!$1:$1048576,'Graph Data from Match'!$M$31,'Graph Data from Match'!P31) -> 20797.29 | Q33: =INDEX('Original FM'!$1:$1048576,'Graph Data from Match'!$M$31,'Graph Data from Match'!Q31) -> 20895.03726 | R33: =INDEX('Original FM'!$1:$1048576,'Graph Data from Match'!$M$31,'Graph Data from Match'!R31) -> 20993.24394 | S33: =INDEX('Original FM'!$1:$1048576,'Graph Data from Match'!$M$31,'Graph Data from Match'!S31) -> 21091.91218 | T33: =INDEX('Original FM'!$1:$1048576,'Graph Data from Match'!$M$31,'Graph Data from Match'!T31) -> 21191.04417 | U33: =INDEX('Original FM'!$1:$1048576,'Graph Data from Match'!$M$31,'Graph Data from Match'!U31) -> 21290.64208 | V33: =INDEX('Original FM'!$1:$1048576,'Graph Data from Match'!$M$31,'Graph Data from Match'!V31) -> 21390.7081 | W33: =INDEX('Original FM'!$1:$1048576,'Graph Data from Match'!$M$31,'Graph Data from Match'!W31) -> 21491.24443 | X33: =INDEX('Original FM'!$1:$1048576,'Graph Data from Match'!$M$31,'Graph Data from Match'!X31) -> 21592.25327 | Y33: =INDEX('Original FM'!$1:$1048576,'Graph Data from Match'!$M$31,'Graph Data from Match'!Y31) -> 21693.73686 | Z33: =INDEX('Original FM'!$1:$1048576,'Graph Data from Match'!$M$31,'Graph Data from Match'!Z31) -> 21795.69743
K34: =K27 -> Actual | O34: =INDEX('Actual Financial Data'!$1:$1048576,'Graph Data from Match'!$M$32,'Graph Data from Match'!O32) -> 18600 | P34: =INDEX('Actual Financial Data'!$1:$1048576,'Graph Data from Match'!$M$32,'Graph Data from Match'!P32) -> 19584 | Q34: =INDEX('Actual Financial Data'!$1:$1048576,'Graph Data from Match'!$M$32,'Graph Data from Match'!Q32) -> 19663.56 | R34: =INDEX('Actual Financial Data'!$1:$1048576,'Graph Data from Match'!$M$32,'Graph Data from Match'!R32) -> 19818.0594 | S34: =INDEX('Actual Financial Data'!$1:$1048576,'Graph Data from Match'!$M$32,'Graph Data from Match'!S32) -> 20052.05576 | T34: =INDEX('Actual Financial Data'!$1:$1048576,'Graph Data from Match'!$M$32,'Graph Data from Match'!T32) ->  | U34: =INDEX('Actual Financial Data'!$1:$1048576,'Graph Data from Match'!$M$32,'Graph Data from Match'!U32) ->  | V34: =INDEX('Actual Financial Data'!$1:$1048576,'Graph Data from Match'!$M$32,'Graph Data from Match'!V32) ->  | W34: =INDEX('Actual Financial Data'!$1:$1048576,'Graph Data from Match'!$M$32,'Graph Data from Match'!W32) ->  | X34: =INDEX('Actual Financial Data'!$1:$1048576,'Graph Data from Match'!$M$32,'Graph Data from Match'!X32) ->  | Y34: =INDEX('Actual Financial Data'!$1:$1048576,'Graph Data from Match'!$M$32,'Graph Data from Match'!Y32) ->  | Z34: =INDEX('Actual Financial Data'!$1:$1048576,'Graph Data from Match'!$M$32,'Graph Data from Match'!Z32) -> 
K36: Pct of Revenue | O36: =O14/O33 -> 0.09 | P36: 0.09 | Q36: 0.09 | R36: 0.09 | S36: 0.09 | T36: 0.09 | U36: 0.09 | V36: 0.09 | W36: 0.09 | X36: 0.09 | Y36: 0.09 | Z36: 0.09
K37: Financial Model | O37: =O15/O34 -> 0.08064516129 | P37: 0.0714869281 | Q37: 0.06865491295 | R37: 0.0706426382 | S37: 0.0668260659
K38: Actual
K40: =B13 -> Total Expense
K41: ="FM Row/Col - "&$K$40 -> FM Row/Col - Total Expense | M41: =MATCH(K40,'Original FM'!C:C,0) -> 19 | O41: =O31 -> 7 | P41: =P31 -> 8 | Q41: 9 | R41: 10 | S41: 11 | T41: 12 | U41: 13 | V41: 14 | W41: 15 | X41: 16 | Y41: 17 | Z41: 18
K42: ="Actual "&$K$40 -> Actual Total Expense | M42: =MATCH(K40,'Actual Financial Data'!B:B,0) -> 22 | O42: =O32 -> 7 | P42: =P32 -> 8 | Q42: 9 | R42: 10 | S42: 11
K44: =K33 -> Financial Model | O44: =INDEX('Original FM'!$1:$1048576,'Graph Data from Match'!$M$41,'Graph Data from Match'!O41) -> 10413 | P44: =INDEX('Original FM'!$1:$1048576,'Graph Data from Match'!$M$41,'Graph Data from Match'!P41) -> 10482.5061 | Q44: =INDEX('Original FM'!$1:$1048576,'Graph Data from Match'!$M$41,'Graph Data from Match'!Q41) -> 10553.3621 | R44: =INDEX('Original FM'!$1:$1048576,'Graph Data from Match'!$M$41,'Graph Data from Match'!R41) -> 10625.5752 | S44: =INDEX('Original FM'!$1:$1048576,'Graph Data from Match'!$M$41,'Graph Data from Match'!S41) -> 10699.15289 | T44: =INDEX('Original FM'!$1:$1048576,'Graph Data from Match'!$M$41,'Graph Data from Match'!T41) -> 10774.10299 | U44: =INDEX('Original FM'!$1:$1048576,'Graph Data from Match'!$M$41,'Graph Data from Match'!U41) -> 10850.43365 | V44: =INDEX('Original FM'!$1:$1048576,'Graph Data from Match'!$M$41,'Graph Data from Match'!V41) -> 10928.1533 | W44: =INDEX('Original FM'!$1:$1048576,'Graph Data from Match'!$M$41,'Graph Data from Match'!W41) -> 11007.27074 | X44: =INDEX('Original FM'!$1:$1048576,'Graph Data from Match'!$M$41,'Graph Data from Match'!X41) -> 11087.79504 | Y44: =INDEX('Original FM'!$1:$1048576,'Graph Data from Match'!$M$41,'Graph Data from Match'!Y41) -> 11169.73562 | Z44: =INDEX('Original FM'!$1:$1048576,'Graph Data from Match'!$M$41,'Graph Data from Match'!Z41) -> 11253.10219
K45: =K34 -> Actual | O45: =INDEX('Actual Financial Data'!$1:$1048576,'Graph Data from Match'!$M$42,'Graph Data from Match'!O42) -> 10445 | P45: =INDEX('Actual Financial Data'!$1:$1048576,'Graph Data from Match'!$M$42,'Graph Data from Match'!P42) -> 10430 | Q45: =INDEX('Actual Financial Data'!$1:$1048576,'Graph Data from Match'!$M$42,'Graph Data from Match'!Q42) -> 9440 | R45: =INDEX('Actual Financial Data'!$1:$1048576,'Graph Data from Match'!$M$42,'Graph Data from Match'!R42) -> 10010 | S45: =INDEX('Actual Financial Data'!$1:$1048576,'Graph Data from Match'!$M$42,'Graph Data from Match'!S42) -> 10342 | T45: =INDEX('Actual Financial Data'!$1:$1048576,'Graph Data from Match'!$M$42,'Graph Data from Match'!T42) ->  | U45: =INDEX('Actual Financial Data'!$1:$1048576,'Graph Data from Match'!$M$42,'Graph Data from Match'!U42) ->  | V45: =INDEX('Actual Financial Data'!$1:$1048576,'Graph Data from Match'!$M$42,'Graph Data from Match'!V42) ->  | W45: =INDEX('Actual Financial Data'!$1:$1048576,'Graph Data from Match'!$M$42,'Graph Data from Match'!W42) ->  | X45: =INDEX('Actual Financial Data'!$1:$1048576,'Graph Data from Match'!$M$42,'Graph Data from Match'!X42) ->  | Y45: =INDEX('Actual Financial Data'!$1:$1048576,'Graph Data from Match'!$M$42,'Graph Data from Match'!Y42) ->  | Z45: =INDEX('Actual Financial Data'!$1:$1048576,'Graph Data from Match'!$M$42,'Graph Data from Match'!Z42) -> 
K47: Pct of Expense
K48: Financial Model | O48: =O14/O44 -> 0.1789109767 | P48: =P14/P44 -> 0.1785599819 | Q48: 0.1781947151 | R48: 0.1778154988 | S48: 0.1774226536 | T48: 0.1770164975 | U48: 0.1765973462 | V48: 0.1761655126 | W48: 0.1757213068 | X48: 0.1752650358 | Y48: 0.1747970037 | Z48: 0.1743175113
K49: Actual | O49: =O15/O45 -> 0.1436093825 | P49: =P15/P45 -> 0.1342281879 | Q49: 0.1430084746 | R49: 0.1398601399 | S49: 0.1295687488
K52: Final Graph
O53: =O13 -> 2009 | P53: =P13 -> 2010 | Q53: 2011 | R53: 2012 | S53: 2013 | T53: 2014 | U53: 2015 | V53: 2016 | W53: 2017 | X53: 2018 | Y53: 2019 | Z53: 2020
K54: Financial Model | O54: =CHOOSE($R$4,O14,O26,O36,O48) -> 1863 | P54: =CHOOSE($R$4,P14,P26,P36,P48) -> 1871.7561 | Q54: 1880.553354 | R54: 1889.391954 | S54: 1898.272097 | T54: 1907.193975 | U54: 1916.157787 | V54: 1925.163729 | W54: 1934.211998 | X54: 1943.302795 | Y54: 1952.436318 | Z54: 1961.612769
K55: Actual | O55: =CHOOSE($R$4,O15,O27,O37,O49) -> 1500 | P55: 1400 | Q55: 1350 | R55: 1400 | S55: 1340
K57: Chart Title | N57: =K12 -> Royalty Expense | P57: =INDEX(P1:P4,R4) -> Raw Data
K59: Switch for Min/Max | L59: FALSE | M59: reset
K60: Scale Type Close | L60: TRUE | M60: scale type | Q60: =IF(scale_type,1,0) -> 1
K62: Min with NA | L62: =adj_min(O54:Z55) -> 1340
K63: Max with NA | L63: =adj_max(O54:Z55) -> 1961.612769
K65: Round Factor | L65: =SUMPRODUCT(LEN(ROUND(L62,0))) -> 4
K66: Round Factor Logs | L66: =LOG(L62)/LOG(10) -> 3.127104798 | M66: =_xlfn.FORMULATEXT(L66) -> =LOG(L62)/LOG(10)
K67: Adjusted Round Factor | L67: =-ROUNDUP(L66,Q60) -> -3.2 | M67: =_xlfn.FORMULATEXT(L67) -> =-ROUNDUP(L66,Q60)
K68: Second Adjustment | L68: =IF(L67<0,L67+1,L67) -> -2.2 | M68: =IF(L67<0,L67+1,L67)
K70: Adj Min for Round | L70: =ROUNDDOWN(L62,L68) -> 1300 | M70: min adj
B71: Code Number | D71: 4 | K71: Adj Max for Round | L71: =ROUNDUP(L63,L68) -> 2000 | M71: max adj
B74: =INDEX(B3:B22,$D$71) -> Labour at Plant - Operations
A76: Financial Model Comparison
P77: ='Revised Forecast'!L1 -> 2009 | Q77: ='Revised Forecast'!M1 -> 2010 | R77: ='Revised Forecast'!N1 -> 2011 | S77: ='Revised Forecast'!O1 -> 2012 | T77: ='Revised Forecast'!P1 -> 2013 | U77: ='Revised Forecast'!Q1 -> 2014 | V77: ='Revised Forecast'!R1 -> 2015 | W77: ='Revised Forecast'!S1 -> 2016 | X77: ='Revised Forecast'!T1 -> 2017 | Y77: ='Revised Forecast'!U1 -> 2018 | Z77: ='Revised Forecast'!V1 -> 2019 | AA77: ='Revised Forecast'!W1 -> 2020 | AB77: ='Revised Forecast'!X1 -> 2021 | AC77: ='Revised Forecast'!Y1 -> 2022 | AD77: ='Revised Forecast'!Z1 -> 2023 | AE77: ='Revised Forecast'!AA1 -> 2024 | AF77: ='Revised Forecast'!AB1 -> 2025
B78: Financial Model | D78: =INDEX('Graph Data from Match'!D3:D22,'Graph Data from Match'!D71) -> 14 | P78: =INDEX('Original FM'!G:G,'Graph Data from Match'!$D$78) -> 3200 | Q78: =INDEX('Original FM'!H:H,'Graph Data from Match'!$D$78) -> 3248 | R78: =INDEX('Original FM'!I:I,'Graph Data from Match'!$D$78) -> 3296.72 | S78: =INDEX('Original FM'!J:J,'Graph Data from Match'!$D$78) -> 3346.1708 | T78: =INDEX('Original FM'!K:K,'Graph Data from Match'!$D$78) -> 3396.363362 | U78: =INDEX('Original FM'!L:L,'Graph Data from Match'!$D$78) -> 3447.308812 | V78: =INDEX('Original FM'!M:M,'Graph Data from Match'!$D$78) -> 3499.018445 | W78: =INDEX('Original FM'!N:N,'Graph Data from Match'!$D$78) -> 3551.503721 | X78: =INDEX('Original FM'!O:O,'Graph Data from Match'!$D$78) -> 3604.776277 | Y78: =INDEX('Original FM'!P:P,'Graph Data from Match'!$D$78) -> 3658.847921 | Z78: =INDEX('Original FM'!Q:Q,'Graph Data from Match'!$D$78) -> 3713.73064 | AA78: =INDEX('Original FM'!R:R,'Graph Data from Match'!$D$78) -> 3769.4366 | AB78: =INDEX('Original FM'!S:S,'Graph Data from Match'!$D$78) -> 3825.978149 | AC78: =INDEX('Original FM'!T:T,'Graph Data from Match'!$D$78) -> 3883.367821 | AD78: =INDEX('Original FM'!U:U,'Graph Data from Match'!$D$78) -> 3941.618338 | AE78: =INDEX('Original FM'!V:V,'Graph Data from Match'!$D$78) -> 4000.742613 | AF78: =INDEX('Original FM'!W:W,'Graph Data from Match'!$D$78) -> 4060.753752
B79: Actual/Forecast | D79: =INDEX('Graph Data from Match'!G3:G22,'Graph Data from Match'!D71) ->  | P79: =INDEX(P$76:P$135,$D$79) -> 
B80: History | P80: =IF('Revised Forecast'!L2,MAX($P$78:$AF$79),"") ->  | Q80: =IF('Revised Forecast'!M2,MAX($P$78:$AF$79),"") ->  | R80: =IF('Revised Forecast'!N2,MAX($P$78:$AF$79),"") ->  | S80: =IF('Revised Forecast'!O2,MAX($P$78:$AF$79),"") ->  | T80: =IF('Revised Forecast'!P2,MAX($P$78:$AF$79),"") ->  | U80: =IF('Revised Forecast'!Q2,MAX($P$78:$AF$79),"") ->  | V80: =IF('Revised Forecast'!R2,MAX($P$78:$AF$79),"") ->  | W80: =IF('Revised Forecast'!S2,MAX($P$78:$AF$79),"") ->  | X80: =IF('Revised Forecast'!T2,MAX($P$78:$AF$79),"") ->  | Y80: =IF('Revised Forecast'!U2,MAX($P$78:$AF$79),"") ->  | Z80: =IF('Revised Forecast'!V2,MAX($P$78:$AF$79),"") ->  | AA80: =IF('Revised Forecast'!W2,MAX($P$78:$AF$79),"") ->  | AB80: =IF('Revised Forecast'!X2,MAX($P$78:$AF$79),"") ->  | AC80: =IF('Revised Forecast'!Y2,MAX($P$78:$AF$79),"") ->  | AD80: =IF('Revised Forecast'!Z2,MAX($P$78:$AF$79),"") ->  | AE80: =IF('Revised Forecast'!AA2,MAX($P$78:$AF$79),"") ->  | AF80: =IF('Revised Forecast'!AB2,MAX($P$78:$AF$79),"") -> 
B81: Forecast | P81: =IF(NOT('Revised Forecast'!L2),MAX($P$78:$AF$79),"") ->  | Q81: =IF(NOT('Revised Forecast'!M2),MAX($P$78:$AF$79),"") ->  | R81: =IF(NOT('Revised Forecast'!N2),MAX($P$78:$AF$79),"") ->  | S81: =IF(NOT('Revised Forecast'!O2),MAX($P$78:$AF$79),"") ->  | T81: =IF(NOT('Revised Forecast'!P2),MAX($P$78:$AF$79),"") ->  | U81: =IF(NOT('Revised Forecast'!Q2),MAX($P$78:$AF$79),"") ->  | V81: =IF(NOT('Revised Forecast'!R2),MAX($P$78:$AF$79),"") ->  | W81: =IF(NOT('Revised Forecast'!S2),MAX($P$78:$AF$79),"") ->  | X81: =IF(NOT('Revised Forecast'!T2),MAX($P$78:$AF$79),"") ->  | Y81: =IF(NOT('Revised Forecast'!U2),MAX($P$78:$AF$79),"") ->  | Z81: =IF(NOT('Revised Forecast'!V2),MAX($P$78:$AF$79),"") ->  | AA81: =IF(NOT('Revised Forecast'!W2),MAX($P$78:$AF$79),"") ->  | AB81: =IF(NOT('Revised Forecast'!X2),MAX($P$78:$AF$79),"") ->  | AC81: =IF(NOT('Revised Forecast'!Y2),MAX($P$78:$AF$79),"") ->  | AD81: =IF(NOT('Revised Forecast'!Z2),MAX($P$78:$AF$79),"") ->  | AE81: =IF(NOT('Revised Forecast'!AA2),MAX($P$78:$AF$79),"") ->  | AF81: =IF(NOT('Revised Forecast'!AB2),MAX($P$78:$AF$79),"") -> 
B83: Raw data
P84: =P77 -> 2009 | Q84: 2010 | R84: 2011 | S84: 2012 | T84: 2013 | U84: 2014 | V84: 2015 | W84: 2016 | X84: 2017 | Y84: 2018 | Z84: 2019 | AA84: 2020 | AB84: 2021 | AC84: 2022 | AD84: 2023 | AE84: 2024 | AF84: 2025
B85: History | P85: =IF('Revised Forecast'!L2,P79) ->  | Q85: =IF('Revised Forecast'!M2,Q79) ->  | R85: =IF('Revised Forecast'!N2,R79) ->  | S85: =IF('Revised Forecast'!O2,S79) ->  | T85: =IF('Revised Forecast'!P2,T79) ->  | U85: =IF('Revised Forecast'!Q2,U79) -> FALSE | V85: =IF('Revised Forecast'!R2,V79) -> FALSE | W85: =IF('Revised Forecast'!S2,W79) -> FALSE | X85: =IF('Revised Forecast'!T2,X79) -> FALSE | Y85: =IF('Revised Forecast'!U2,Y79) -> FALSE | Z85: =IF('Revised Forecast'!V2,Z79) -> FALSE | AA85: =IF('Revised Forecast'!W2,AA79) -> FALSE | AB85: =IF('Revised Forecast'!X2,AB79) -> FALSE | AC85: =IF('Revised Forecast'!Y2,AC79) -> FALSE | AD85: =IF('Revised Forecast'!Z2,AD79) -> FALSE | AE85: =IF('Revised Forecast'!AA2,AE79) -> FALSE | AF85: =IF('Revised Forecast'!AB2,AF79) -> FALSE
B86: Forecast | P86: =IF(NOT('Revised Forecast'!L2),P79) -> FALSE | Q86: =IF(NOT('Revised Forecast'!M2),Q79) -> FALSE | R86: =IF(NOT('Revised Forecast'!N2),R79) -> FALSE | S86: =IF(NOT('Revised Forecast'!O2),S79) -> FALSE | T86: =IF(NOT('Revised Forecast'!P2),T79) -> FALSE | U86: =IF(NOT('Revised Forecast'!Q2),U79) ->  | V86: =IF(NOT('Revised Forecast'!R2),V79) ->  | W86: =IF(NOT('Revised Forecast'!S2),W79) ->  | X86: =IF(NOT('Revised Forecast'!T2),X79) ->  | Y86: =IF(NOT('Revised Forecast'!U2),Y79) ->  | Z86: =IF(NOT('Revised Forecast'!V2),Z79) ->  | AA86: =IF(NOT('Revised Forecast'!W2),AA79) ->  | AB86: =IF(NOT('Revised Forecast'!X2),AB79) ->  | AC86: =IF(NOT('Revised Forecast'!Y2),AC79) ->  | AD86: =IF(NOT('Revised Forecast'!Z2),AD79) ->  | AE86: =IF(NOT('Revised Forecast'!AA2),AE79) ->  | AF86: =IF(NOT('Revised Forecast'!AB2),AF79) -> 
B88: Generation Percent
B89: Generation | P89: ='Revised Forecast'!L6 -> 135000 | Q89: ='Revised Forecast'!M6 -> 140000 | R89: ='Revised Forecast'!N6 -> 138000 | S89: ='Revised Forecast'!O6 -> 136000 | T89: ='Revised Forecast'!P6 -> 135500 | U89: ='Revised Forecast'!Q6 -> 139082.4754 | V89: ='Revised Forecast'!R6 -> 136996.2382 | W89: ='Revised Forecast'!S6 -> 134941.2947 | X89: ='Revised Forecast'!T6 -> 132917.1752 | Y89: ='Revised Forecast'!U6 -> 130923.4176 | Z89: ='Revised Forecast'!V6 -> 128959.5663 | AA89: ='Revised Forecast'!W6 -> 127025.1728 | AB89: ='Revised Forecast'!X6 -> 125119.7953 | AC89: ='Revised Forecast'!Y6 -> 123242.9983 | AD89: ='Revised Forecast'!Z6 -> 121394.3533 | AE89: ='Revised Forecast'!AA6 -> 119573.438 | AF89: ='Revised Forecast'!AB6 -> 117779.8365
B90: =B85 -> History | P90: =IF('Revised Forecast'!L2,P85/P89) ->  | Q90: =IF('Revised Forecast'!M2,Q85/Q89) ->  | R90: =IF('Revised Forecast'!N2,R85/R89) ->  | S90: =IF('Revised Forecast'!O2,S85/S89) ->  | T90: =IF('Revised Forecast'!P2,T85/T89) ->  | U90: =IF('Revised Forecast'!Q2,U85/U89) -> FALSE | V90: =IF('Revised Forecast'!R2,V85/V89) -> FALSE | W90: =IF('Revised Forecast'!S2,W85/W89) -> FALSE | X90: =IF('Revised Forecast'!T2,X85/X89) -> FALSE | Y90: =IF('Revised Forecast'!U2,Y85/Y89) -> FALSE | Z90: =IF('Revised Forecast'!V2,Z85/Z89) -> FALSE | AA90: =IF('Revised Forecast'!W2,AA85/AA89) -> FALSE | AB90: =IF('Revised Forecast'!X2,AB85/AB89) -> FALSE | AC90: =IF('Revised Forecast'!Y2,AC85/AC89) -> FALSE | AD90: =IF('Revised Forecast'!Z2,AD85/AD89) -> FALSE | AE90: =IF('Revised Forecast'!AA2,AE85/AE89) -> FALSE | AF90: =IF('Revised Forecast'!AB2,AF85/AF89) -> FALSE
B91: =B86 -> Forecast | P91: =IF(NOT('Revised Forecast'!L2),P79/P89) -> FALSE | Q91: =IF(NOT('Revised Forecast'!M2),Q79/Q89) -> FALSE | R91: =IF(NOT('Revised Forecast'!N2),R79/R89) -> FALSE | S91: =IF(NOT('Revised Forecast'!O2),S79/S89) -> FALSE | T91: =IF(NOT('Revised Forecast'!P2),T79/T89) -> FALSE | U91: =IF(NOT('Revised Forecast'!Q2),U79/U89) ->  | V91: =IF(NOT('Revised Forecast'!R2),V79/V89) ->  | W91: =IF(NOT('Revised Forecast'!S2),W79/W89) ->  | X91: =IF(NOT('Revised Forecast'!T2),X79/X89) ->  | Y91: =IF(NOT('Revised Forecast'!U2),Y79/Y89) ->  | Z91: =IF(NOT('Revised Forecast'!V2),Z79/Z89) ->  | AA91: =IF(NOT('Revised Forecast'!W2),AA79/AA89) ->  | AB91: =IF(NOT('Revised Forecast'!X2),AB79/AB89) ->  | AC91: =IF(NOT('Revised Forecast'!Y2),AC79/AC89) ->  | AD91: =IF(NOT('Revised Forecast'!Z2),AD79/AD89) ->  | AE91: =IF(NOT('Revised Forecast'!AA2),AE79/AE89) ->  | AF91: =IF(NOT('Revised Forecast'!AB2),AF79/AF89) -> 
B93: Revenue Percent
B94: Revenue | P94: ='Revised Forecast'!L12 -> 18600 | Q94: ='Revised Forecast'!M12 -> 19584 | R94: ='Revised Forecast'!N12 -> 19663.56 | S94: ='Revised Forecast'!O12 -> 19818.0594 | T94: ='Revised Forecast'!P12 -> 20052.05576 | U94: ='Revised Forecast'!Q12 -> 20643.46563 | V94: ='Revised Forecast'!R12 -> 20304.73411 | W94: ='Revised Forecast'!S12 -> 19971.08356 | X94: ='Revised Forecast'!T12 -> 19642.43776 | Y94: ='Revised Forecast'!U12 -> 19318.72166 | Z94: ='Revised Forecast'!V12 -> 18999.86129 | AA94: ='Revised Forecast'!W12 -> 18685.78383 | AB94: ='Revised Forecast'!X12 -> 18376.41754 | AC94: ='Revised Forecast'!Y12 -> 18071.69173 | AD94: ='Revised Forecast'!Z12 -> 17771.53682 | AE94: ='Revised Forecast'!AA12 -> 17475.88423 | AF94: ='Revised Forecast'!AB12 -> 17184.66642
B95: =B90 -> History | P95: =IF('Revised Forecast'!L2,P79/P94) ->  | Q95: =IF('Revised Forecast'!M2,Q79/Q94) ->  | R95: =IF('Revised Forecast'!N2,R79/R94) ->  | S95: =IF('Revised Forecast'!O2,S79/S94) ->  | T95: =IF('Revised Forecast'!P2,T79/T94) ->  | U95: =IF('Revised Forecast'!Q2,U79/U94) -> FALSE | V95: =IF('Revised Forecast'!R2,V79/V94) -> FALSE | W95: =IF('Revised Forecast'!S2,W79/W94) -> FALSE | X95: =IF('Revised Forecast'!T2,X79/X94) -> FALSE | Y95: =IF('Revised Forecast'!U2,Y79/Y94) -> FALSE | Z95: =IF('Revised Forecast'!V2,Z79/Z94) -> FALSE | AA95: =IF('Revised Forecast'!W2,AA79/AA94) -> FALSE | AB95: =IF('Revised Forecast'!X2,AB79/AB94) -> FALSE | AC95: =IF('Revised Forecast'!Y2,AC79/AC94) -> FALSE | AD95: =IF('Revised Forecast'!Z2,AD79/AD94) -> FALSE | AE95: =IF('Revised Forecast'!AA2,AE79/AE94) -> FALSE | AF95: =IF('Revised Forecast'!AB2,AF79/AF94) -> FALSE
B96: =B91 -> Forecast | P96: =IF(NOT('Revised Forecast'!L2),P79/P94) -> FALSE | Q96: =IF(NOT('Revised Forecast'!M2),Q79/Q94) -> FALSE | R96: =IF(NOT('Revised Forecast'!N2),R79/R94) -> FALSE | S96: =IF(NOT('Revised Forecast'!O2),S79/S94) -> FALSE | T96: =IF(NOT('Revised Forecast'!P2),T79/T94) -> FALSE | U96: =IF(NOT('Revised Forecast'!Q2),U79/U94) ->  | V96: =IF(NOT('Revised Forecast'!R2),V79/V94) ->  | W96: =IF(NOT('Revised Forecast'!S2),W79/W94) ->  | X96: =IF(NOT('Revised Forecast'!T2),X79/X94) ->  | Y96: =IF(NOT('Revised Forecast'!U2),Y79/Y94) ->  | Z96: =IF(NOT('Revised Forecast'!V2),Z79/Z94) ->  | AA96: =IF(NOT('Revised Forecast'!W2),AA79/AA94) ->  | AB96: =IF(NOT('Revised Forecast'!X2),AB79/AB94) ->  | AC96: =IF(NOT('Revised Forecast'!Y2),AC79/AC94) ->  | AD96: =IF(NOT('Revised Forecast'!Z2),AD79/AD94) ->  | AE96: =IF(NOT('Revised Forecast'!AA2),AE79/AE94) ->  | AF96: =IF(NOT('Revised Forecast'!AB2),AF79/AF94) -> 
B98: Expense Percent
B99: Expense | P99: ='Revised Forecast'!L20 -> 10445 | Q99: ='Revised Forecast'!M20 -> 10430 | R99: ='Revised Forecast'!N20 -> 9440 | S99: ='Revised Forecast'!O20 -> 10010 | T99: ='Revised Forecast'!P20 -> 10342 | U99: ='Revised Forecast'!Q20 -> 10727.565 | V99: ='Revised Forecast'!R20 -> 10727.565 | W99: ='Revised Forecast'!S20 -> 10727.565 | X99: ='Revised Forecast'!T20 -> 10727.565 | Y99: ='Revised Forecast'!U20 -> 10727.565 | Z99: ='Revised Forecast'!V20 -> 10727.565 | AA99: ='Revised Forecast'!W20 -> 10727.565 | AB99: ='Revised Forecast'!X20 -> 10727.565 | AC99: ='Revised Forecast'!Y20 -> 10727.565 | AD99: ='Revised Forecast'!Z20 -> 10727.565 | AE99: ='Revised Forecast'!AA20 -> 10727.565 | AF99: ='Revised Forecast'!AB20 -> 10727.565
B100: =B95 -> History | P100: =IF('Revised Forecast'!L2,P79/P99) ->  | Q100: =IF('Revised Forecast'!M2,Q79/Q99) ->  | R100: =IF('Revised Forecast'!N2,R79/R99) ->  | S100: =IF('Revised Forecast'!O2,S79/S99) ->  | T100: =IF('Revised Forecast'!P2,T79/T99) ->  | U100: =IF('Revised Forecast'!Q2,U79/U99) -> FALSE | V100: =IF('Revised Forecast'!R2,V79/V99) -> FALSE | W100: =IF('Revised Forecast'!S2,W79/W99) -> FALSE | X100: =IF('Revised Forecast'!T2,X79/X99) -> FALSE | Y100: =IF('Revised Forecast'!U2,Y79/Y99) -> FALSE | Z100: =IF('Revised Forecast'!V2,Z79/Z99) -> FALSE | AA100: =IF('Revised Forecast'!W2,AA79/AA99) -> FALSE | AB100: =IF('Revised Forecast'!X2,AB79/AB99) -> FALSE | AC100: =IF('Revised Forecast'!Y2,AC79/AC99) -> FALSE | AD100: =IF('Revised Forecast'!Z2,AD79/AD99) -> FALSE | AE100: =IF('Revised Forecast'!AA2,AE79/AE99) -> FALSE | AF100: =IF('Revised Forecast'!AB2,AF79/AF99) -> FALSE
B101: =B96 -> Forecast | P101: =IF(NOT('Revised Forecast'!L2),P79/P99) -> FALSE | Q101: =IF(NOT('Revised Forecast'!M2),Q79/Q99) -> FALSE | R101: =IF(NOT('Revised Forecast'!N2),R79/R99) -> FALSE | S101: =IF(NOT('Revised Forecast'!O2),S79/S99) -> FALSE | T101: =IF(NOT('Revised Forecast'!P2),T79/T99) -> FALSE | U101: =IF(NOT('Revised Forecast'!Q2),U79/U99) ->  | V101: =IF(NOT('Revised Forecast'!R2),V79/V99) ->  | W101: =IF(NOT('Revised Forecast'!S2),W79/W99) ->  | X101: =IF(NOT('Revised Forecast'!T2),X79/X99) ->  | Y101: =IF(NOT('Revised Forecast'!U2),Y79/Y99) ->  | Z101: =IF(NOT('Revised Forecast'!V2),Z79/Z99) ->  | AA101: =IF(NOT('Revised Forecast'!W2),AA79/AA99) ->  | AB101: =IF(NOT('Revised Forecast'!X2),AB79/AB99) ->  | AC101: =IF(NOT('Revised Forecast'!Y2),AC79/AC99) ->  | AD101: =IF(NOT('Revised Forecast'!Z2),AD79/AD99) ->  | AE101: =IF(NOT('Revised Forecast'!AA2),AE79/AE99) ->  | AF101: =IF(NOT('Revised Forecast'!AB2),AF79/AF99) -> 
B104: =CHOOSE($K$120,B83,B88,B93,B98) -> Revenue Percent | P104: =CHOOSE($K$120,P83,P88,P93,P98) -> 0 | Q104: 0 | R104: 0 | S104: 0 | T104: 0 | U104: 0 | V104: 0 | W104: 0 | X104: 0 | Y104: 0 | Z104: 0 | AA104: 0 | AB104: 0 | AC104: 0 | AD104: 0 | AE104: 0 | AF104: 0
P105: ='Revised Forecast'!L1 -> 2009 | Q105: ='Revised Forecast'!M1 -> 2010 | R105: ='Revised Forecast'!N1 -> 2011 | S105: ='Revised Forecast'!O1 -> 2012 | T105: ='Revised Forecast'!P1 -> 2013 | U105: ='Revised Forecast'!Q1 -> 2014 | V105: ='Revised Forecast'!R1 -> 2015 | W105: ='Revised Forecast'!S1 -> 2016 | X105: ='Revised Forecast'!T1 -> 2017 | Y105: ='Revised Forecast'!U1 -> 2018 | Z105: ='Revised Forecast'!V1 -> 2019 | AA105: ='Revised Forecast'!W1 -> 2020 | AB105: ='Revised Forecast'!X1 -> 2021 | AC105: ='Revised Forecast'!Y1 -> 2022 | AD105: ='Revised Forecast'!Z1 -> 2023 | AE105: ='Revised Forecast'!AA1 -> 2024 | AF105: ='Revised Forecast'!AB1 -> 2025
B106: =CHOOSE($K$120,B85,B90,B95,B100) -> History | P106: =CHOOSE($K$120,P85,P90,P95,P100) ->  | U106: FALSE | V106: FALSE | W106: FALSE | X106: FALSE | Y106: FALSE | Z106: FALSE | AA106: FALSE | AB106: FALSE | AC106: FALSE | AD106: FALSE | AE106: FALSE | AF106: FALSE
B107: =CHOOSE($K$120,B86,B91,B96,B101) -> Forecast | P107: =CHOOSE($K$120,P86,P91,P96,P101) -> FALSE | Q107: FALSE | R107: FALSE | S107: FALSE | T107: FALSE
A109: Titles and Misc
C111: ='Graph Data from Match'!B74 -> Labour at Plant - Operations | G111: =B104 -> Revenue Percent
C113: Average of History
C114: Last History
C115: Financial Model
C116: Simple Input
C117: Detailed Input
C120: Raw Data | K120: 3
C121: Generation Percent
C122: Revenue Percent
C123: Expense Percent

Sheet Graph Actual vs FM

Sheet IRR and Growth
C1: One Year Case | F1: Two Year Case | I1: Three Year Case
B3: Cash Outflow | C3: -100 | D3: 100 | F3: -100 | G3: 100 | I3: -100 | J3: 100
I4: 0
F5: 0 | I5: 0
B6: Cash Inflow | C6: 110 | D6: 110 | F6: 110 | G6: 110 | I6: 110 | J6: 110
B8: IRR | C8: =IRR(C3:C6) -> 0.1 | F8: =IRR(F3:F6) -> 0.04880884817 | I8: =IRR(I3:I6) -> 0.03228011546
B9: Growth Rate | D9: =D6/D3-1 -> 0.1 | G9: =(G6/G3)^(1/2)-1 -> 0.04880884817 | J9: =(J6/J3)^(1/3)-1 -> 0.03228011546

Sheet Data from PDF
A1: five-year
A2: group financial
A3: summary
A4: Group
A5: Year Ended 31 August
A6: 2011
A7: (Restated)
A8: 2012
A9: (Restated)
A10: 2013
A11: (Restated)
A12: 2014 2015
A13: OPERATING RESULTS (RM MILLION)1
A14: Revenue 32,241.2 35,848.4 37,130.7 42,792.4 43,286.8
A15: Operating Profit 1,816.8 6,680.8 5,906.9 7,181.0 8,627.6
A16: Profit before taxation and zakat 1,156.7 5,821.1 5,925.1 7,114.7 7,133.7
A17: Net profit attributable to owners of the Company 965.4 4,410.5 5,356.2 6,467.0 6,118.4
A18: KEY BALANCE SHEET DATA (RM MILLION)2
A19: Property, plant and equipment 61,861.4 64,769.9 75,460.5 83,045.1 90,300.3
A20: Total assets 79,064.3 88,469.1 99,999.3 110,665.4 117,135.0
A21: Total borrowings 19,054.1 23,071.8 22,888.4 25,456.0 24,698.9
A22: Total liabilities 48,286.4 53,311.8 62,028.6 67,206.2 69,668.1
A23: Share capital 5,456.6 5,501.6 5,643.6 5,643.6 5,643.6
A24: Shareholders’ equity 30,547.3 34,897.7 37,693.1 43,222.0 47,208.0
A25: SHARE INFORMATION
A26: Per share (sen)
A27: Basic earnings 17.71 80.71 96.13 114.59 108.41
A28: Diluted earnings 17.67 80.51 95.96 114.59 108.41
A29: Gross dividend 4.50 20.09 25.00 29.00 29.00
A30: Net Assets 559.80 634.3 667.9 765.9 836.5
A31: Share price as @ 31 August (RM) 5.25 6.84 8.73 12.38 11.18
A32: FINANCIAL RATIOS3
A33: Return on assets (%) 4.1 4.5 5.6 6.2 6.6
A34: Return on shareholders’ equity (%) 10.1 11.4 14.7 15.8 16.3
A35: Gearing (%) 38.2 39.6 37.6 36.9 34.2
A36: EBITDA margin (%) 23.3 25.9 28.1 28.2 32.2
A37: Effective weighted average cost of funds (%) 5.1 4.9 4.7 4.9 4.8
A38: Interest coverage (%) 8.5 11.3 11.7 13.8 14.7
A39: Currency mix (RM:Foreign) 56:44 65:35 71:29 77:23 78:22
A40: Debt-equity (net of cash) ratio4 0.47 0.41 0.35 0.32 0.33

Sheet Reformatted Data
B1: 2011 | C1: 2012 | D1: 2013 | E1: 2014 | F1: 2015
A2: OPERATING RESULTS RM MILLION Revenue | B2: 32241.2 | C2: 35848.4 | D2: 37130.7 | E2: 42792.4 | F2: 43286.8
A3: Operating Profit | B3: 1816.8 | C3: 6680.8 | D3: 5906.9 | E3: 7181 | F3: 8627.6
A4: Profit before taxation and zakat | B4: 1156.7 | C4: 5821.1 | D4: 5925.1 | E4: 7114.7 | F4: 7133.7
A5: Net profit attributable to owners of the Company | B5: 965.4 | C5: 4410.5 | D5: 5356.2 | E5: 6467 | F5: 6118.4
A6: KEY BALANCE SHEET DATA RM MILLION Property plant and equipment | B6: 61861.4 | C6: 64769.9 | D6: 75460.5 | E6: 83045.1 | F6: 90300.3
A7: Total assets | B7: 79064.3 | C7: 88469.1 | D7: 99999.3 | E7: 110665.4 | F7: 117135
A8: Total borrowings | B8: 19054.1 | C8: 23071.8 | D8: 22888.4 | E8: 25456 | F8: 24698.9
A9: Total liabilities | B9: 48286.4 | C9: 53311.8 | D9: 62028.6 | E9: 67206.2 | F9: 69668.1
A10: Share capital | B10: 5456.6 | C10: 5501.6 | D10: 5643.6 | E10: 5643.6 | F10: 5643.6
A11: Shareholders’ equity | B11: 30547.3 | C11: 34897.7 | D11: 37693.1 | E11: 43222 | F11: 47208
A12: SHARE INFORMATION
A13: Per share sen Basic earnings | B13: 17.71 | C13: 80.71 | D13: 96.13 | E13: 114.59 | F13: 108.41
A14: Diluted earnings | B14: 17.67 | C14: 80.51 | D14: 95.96 | E14: 114.59 | F14: 108.41
A15: Gross dividend | B15: 4.5 | C15: 20.09 | D15: 25 | E15: 29 | F15: 29
A16: Net Assets | B16: 559.8 | C16: 634.3 | D16: 667.9 | E16: 765.9 | F16: 836.5
A17: Share price as @ August RM | B17: 5.25 | C17: 6.84 | D17: 8.73 | E17: 12.38 | F17: 11.18
A18: FINANCIAL RATIOS Return on assets | B18: 4.1 | C18: 4.5 | D18: 5.6 | E18: 6.2 | F18: 6.6
A19: Return on shareholders’ equity | B19: 10.1 | C19: 11.4 | D19: 14.7 | E19: 15.8 | F19: 16.3
A20: Gearing | B20: 38.2 | C20: 39.6 | D20: 37.6 | E20: 36.9 | F20: 34.2
A21: EBITDA margin | B21: 23.3 | C21: 25.9 | D21: 28.1 | E21: 28.2 | F21: 32.2
A22: Effective weighted average cost of funds | B22: 5.1 | C22: 4.9 | D22: 4.7 | E22: 4.9 | F22: 4.8
A23: Interest coverage | B23: 8.5 | C23: 11.3 | D23: 11.7 | E23: 13.8 | F23: 14.7
A24: Currency mix RM:Foreign | B24: 2.363888889 | C24: 2.732638889 | D24: 2.978472222 | E24: 3.224305556 | F24: 3.265277778
A25: Debt equity net of cash ratio | B25: 0.47 | C25: 0.41 | D25: 0.35 | E25: 0.32 | F25: 0.33
A29: Row number: | B29: 12
B30: 2011 | C30: 2012 | D30: 2013 | E30: 2014 | F30: 2015
A31: =INDEX(A2:A25,$B$29) -> Per share sen Basic earnings | B31: =INDEX(B2:B25,$B$29) -> 17.71 | C31: 80.71 | D31: 96.13 | E31: 114.59 | F31: 108.41

Sheet Waterfall Chartdata1
A1: EBITDA in FM 10,314.78 | B1: 10314.7839 | E1: 687.65226 | F1: 10314.7839 | M1: 10314.7839 | N1: =M1 -> 10314.7839 | P1: =N1 -> 10314.7839 | Q1: =ABS(O1) -> 0 | AZ1: =waterfall_graph_data1 -> EBITDA in FM | BA1: 10341.67516 | BB1: =BA1 -> 10341.67516 | BD1: =BB1 -> 10341.67516 | BE1: =ABS(BC1) -> 0 | BF1: 687.65226 | BG1: =BD1 -> 10341.67516 | BH1: =IF(BC1>=0,0,BF1) -> 0 | BI1: =IF(BC1<0,0,BF1) -> 687.65226 | BJ1: =BA1 -> 10341.67516 | BQ1: =AZ1 -> EBITDA in FM | BS1: =BB1 -> 10341.67516 | BT1: =BQ1&BR1&TEXT(BS1,"*,#,##0.00;(*,(#,##0.00);(* ??_);_(@_)") -> EBITDA in FM 10,341.68 | BU1: =BG1 -> 10341.67516 | BV1: =BH1 -> 0 | BW1: =BE1 -> 0 | BX1: =BI1 -> 687.65226 | BY1: =BB1 -> 10341.67516
A2: Reduced Revenue 9,101.49 | B2: 8413.84164 | C2: 687.65226 | D2: 1213.29 | F2: 10314.7839 | G2: 9101.4939 | M2: -1213.29 | N2: =IF(M2<>0,N1+M2,N1) -> 9101.4939 | O2: =N2-N1 -> -1213.29 | P2: =IF(O2>=0,N2-O2,N1+O2) -> 9101.4939 | Q2: 1213.29 | AZ2: Reduced Revenue | BA2: -1231.477263 | BB2: =IF(BA2<>0,BB1+BA2,BB1) -> 9110.197896 | BC2: =BB2-BB1 -> -1231.477263 | BD2: =IF(BC2>=0,BB2-BC2,BB1+BC2) -> 9110.197896 | BE2: 1231.477263 | BF2: 687.65226 | BG2: =IF(BC2>=0,BD2,BD2-BF2) -> 8422.545636 | BH2: 687.65226 | BI2: 0 | BJ2: =IF(BC2<>0,BC2,BB2) -> -1231.477263 | BQ2: Reduced Revenue | BS2: 9110.197896 | BT2: Reduced Revenue 9,110.20 | BU2: 8422.545636 | BV2: 687.65226 | BW2: 1231.477263 | BX2: 0 | BY2: =BB1 -> 10341.67516 | BZ2: =BB2 -> 9110.197896
A3: Sub Total 9,101.49 | B3: 9101.4939 | D3: 0 | E3: 687.65226 | G3: 9101.4939 | H3: 9101.4939 | N3: 9101.4939 | O3: 0 | P3: 9101.4939 | Q3: 0 | AZ3: Sub Total | BA3: 0 | BB3: 9110.197896 | BC3: 0 | BD3: 9110.197896 | BE3: 0 | BF3: 687.65226 | BG3: 9110.197896 | BH3: 0 | BI3: 687.65226 | BJ3: 9110.197896 | BQ3: Sub Total | BS3: 9110.197896 | BT3: Sub Total 9,110.20 | BU3: 9110.197896 | BV3: 0 | BW3: 0 | BX3: 687.65226 | BZ3: =BB2 -> 9110.197896 | CA3: =BB3 -> 9110.197896
A4: Royalty Expense 9,573.25 | B4: 9101.4939 | D4: 471.7561 | E4: 687.65226 | H4: 9101.4939 | I4: 9573.25 | M4: 471.7561 | N4: 9573.25 | O4: 471.7561 | P4: 9101.4939 | Q4: 471.7561 | AZ4: Royalty Expense | BA4: 530.5533537 | BB4: 9640.75125 | BC4: 530.5533537 | BD4: 9110.197896 | BE4: 530.5533537 | BF4: 687.65226 | BG4: 9110.197896 | BH4: 0 | BI4: 687.65226 | BJ4: 530.5533537 | BQ4: Royalty Expense | BS4: 9640.75125 | BT4: Royalty Expense 9,640.75 | BU4: 9110.197896 | BV4: 0 | BW4: 530.5533537 | BX4: 687.65226 | CA4: =BB3 -> 9110.197896 | CB4: =BB4 -> 9640.75125
A5: Labour at Plant - Operations 9,321.25 | B5: 8633.59774 | C5: 687.65226 | D5: 252 | I5: 9573.25 | J5: 9321.25 | M5: -252 | N5: 9321.25 | O5: -252 | P5: 9321.25 | Q5: 252 | AZ5: Labour at Plant - Operations | BA5: 496.72 | BB5: 10137.47125 | BC5: 496.72 | BD5: 9640.75125 | BE5: 496.72 | BF5: 687.65226 | BG5: 9640.75125 | BH5: 0 | BI5: 687.65226 | BJ5: 496.72 | BQ5: Labour at Plant - Operations | BS5: 10137.47125 | BT5: Labour at Plant - Operations 10,137.47 | BU5: 9640.75125 | BV5: 0 | BW5: 496.72 | BX5: 687.65226 | CB5: =BB4 -> 9640.75125 | CC5: =BB5 -> 10137.47125
A6: Materials for Maintenance 9,405.25 | B6: 9321.25 | D6: 84 | E6: 687.65226 | J6: 9321.25 | K6: 9405.25 | M6: 84 | N6: 9405.25 | O6: 84 | P6: 9321.25 | Q6: 84 | AZ6: Materials for Maintenance | BA6: 118.32 | BB6: 10255.79125 | BC6: 118.32 | BD6: 10137.47125 | BE6: 118.32 | BF6: 687.65226 | BG6: 10137.47125 | BH6: 0 | BI6: 687.65226 | BJ6: 118.32 | BQ6: Materials for Maintenance | BS6: 10255.79125 | BT6: Materials for Maintenance 10,255.79 | BU6: 10137.47125 | BV6: 0 | BW6: 118.32 | BX6: 687.65226 | CC6: =BB5 -> 10137.47125 | CD6: =BB6 -> 10255.79125
A7: Labour for Maintenance 9,230.25 | B7: 8542.59774 | C7: 687.65226 | D7: 175 | K7: 9405.25 | L7: 9230.25 | M7: -175 | N7: 9230.25 | O7: -175 | P7: 9230.25 | Q7: 175 | AZ7: Labour for Maintenance | BA7: -49.75 | BB7: 10206.04125 | BC7: -49.75 | BD7: 10206.04125 | BE7: 49.75 | BF7: 687.65226 | BG7: 9518.38899 | BH7: 687.65226 | BI7: 0 | BJ7: -49.75 | BQ7: Labour for Maintenance | BS7: 10206.04125 | BT7: Labour for Maintenance 10,206.04 | BU7: 9518.38899 | BV7: 687.65226 | BW7: 49.75 | BX7: 0 | CD7: =BB6 -> 10255.79125 | CE7: =BB7 -> 10206.04125
A8: Other Admin Expense 9,354.00 | B8: 9230.25 | D8: 123.75 | E8: 687.65226 | L8: 9230.25 | M8: 123.75 | N8: 9354 | O8: 123.75 | P8: 9230.25 | Q8: 123.75 | AZ8: Other Admin Expense | BA8: 117.51875 | BB8: 10323.56 | BC8: 117.51875 | BD8: 10206.04125 | BE8: 117.51875 | BF8: 687.65226 | BG8: 10206.04125 | BH8: 0 | BI8: 687.65226 | BJ8: 117.51875 | BQ8: Other Admin Expense | BS8: 10323.56 | BT8: Other Admin Expense 10,323.56 | BU8: 10206.04125 | BV8: 0 | BW8: 117.51875 | BX8: 687.65226 | CE8: =BB7 -> 10206.04125 | CF8: =BB8 -> 10323.56
A9: Insurance Expense 9,154.00 | B9: 8466.34774 | C9: 687.65226 | D9: 200 | M9: -200 | N9: 9154 | O9: -200 | P9: 9154 | Q9: 200 | AZ9: Insurance Expense | BA9: -100 | BB9: 10223.56 | BC9: -100 | BD9: 10223.56 | BE9: 100 | BF9: 687.65226 | BG9: 9535.90774 | BH9: 687.65226 | BI9: 0 | BJ9: -100 | BQ9: Insurance Expense | BS9: 10223.56 | BT9: Insurance Expense 10,223.56 | BU9: 9535.90774 | BV9: 687.65226 | BW9: 100 | BX9: 0 | CF9: =BB8 -> 10323.56 | CG9: =BB9 -> 10223.56
A10: EBITDA Actual 9,154.00 | B10: 9154 | D10: 0 | E10: 687.65226 | M10: 0 | N10: 9154 | O10: 0 | P10: 9154 | Q10: 0 | AZ10: EBITDA Actual | BA10: 0 | BB10: 10223.56 | BC10: 0 | BD10: 10223.56 | BE10: 0 | BF10: 687.65226 | BG10: 10223.56 | BH10: 0 | BI10: 687.65226 | BJ10: 10223.56 | BQ10: EBITDA Actual | BS10: 10223.56 | BT10: EBITDA Actual 10,223.56 | BU10: 10223.56 | BV10: 0 | BW10: 0 | BX10: 687.65226 | CG10: =BB9 -> 10223.56
A11: =COLUMN() -> 1 | B11: =COLUMN() -> 2 | C11: =COLUMN() -> 3 | D11: =COLUMN() -> 4 | E11: =COLUMN() -> 5 | F11: =COLUMN() -> 6 | G11: =COLUMN() -> 7 | H11: =COLUMN() -> 8 | I11: =COLUMN() -> 9 | J11: =COLUMN() -> 10 | K11: =COLUMN() -> 11 | L11: =COLUMN() -> 12 | M11: =COLUMN() -> 13 | N11: =COLUMN() -> 14 | O11: =COLUMN() -> 15 | P11: =COLUMN() -> 16 | Q11: =COLUMN() -> 17 | BB11: =COLUMN() -> 54 | BC11: =COLUMN() -> 55 | BD11: =COLUMN() -> 56 | BE11: =COLUMN() -> 57 | BF11: =COLUMN() -> 58 | BG11: =COLUMN() -> 59 | BH11: =COLUMN() -> 60 | BI11: =COLUMN() -> 61 | BJ11: =COLUMN() -> 62 | BK11: =COLUMN() -> 63 | BL11: =COLUMN() -> 64 | BM11: =COLUMN() -> 65 | BN11: =COLUMN() -> 66 | BO11: =COLUMN() -> 67 | BP11: =COLUMN() -> 68 | BQ11: =COLUMN() -> 69 | BR11: =COLUMN() -> 70 | BS11: =COLUMN() -> 71 | BT11: =COLUMN() -> 72 | BU11: =COLUMN() -> 73 | BV11: =COLUMN() -> 74 | BW11: =COLUMN() -> 75 | BX11: =COLUMN() -> 76 | BY11: =COLUMN() -> 77 | BZ11: =COLUMN() -> 78 | CA11: =COLUMN() -> 79 | CB11: =COLUMN() -> 80 | CC11: =COLUMN() -> 81 | CD11: =COLUMN() -> 82 | CE11: =COLUMN() -> 83 | CF11: =COLUMN() -> 84 | CG11: =COLUMN() -> 85 | CH11: =COLUMN() -> 86
A12: Fixed Graph: Graph Titles | D12: Fixed Graph: Increment (absolute Value) | F12: Fixed Graph: Connectors | BB12: CALCULATION: BASE VALUE: If not zero accumulate; if zero Last Value | BT12: GRAPH: Link to the Title
B13: Fixed Graph: Base of Stacked Bar | E13: Fixed Graph: Space for Increment | BB13: CALCULATION: ACCUMULATED VALUE: Formula is accumulation | BU13: GRAPH: Adjusted Base of Stack from calculation
C14: Fixed Graph: Space for Negative Label (Not Graphed | BC14: CALCULATION: INCREMENT: Formula is difference between accumulated value | BV14: GRAPH: Space for Value in Negative Case
A15: TO MAKE GRAPH BY YOURSELF | L15: Chart Title | M15: =AZ1 -> EBITDA in FM | N15: =TEXT(BB1,"*,#,##0.00;(*,(#,##0.00);(* ??_);_(@_)") -> 10,341.68 | O15: Bulid-up Chart | BD15: CALCULATION: BASE OF STACK BAR WITHOUT ADJUSTMENT: Base of Stacked Bar: Formula depends on the increment. If positive then ACC - Incr if negative Last ACC + Incr | BW15: GRAPH: Absolute Value of Increment
A16: 1. PRESS ALT F1 on the yellow AREA | BE16: CALCULATION: ABS VALUE OF INCREMENT: This is enough to make graph without fancy stuff | BX16: GRAPH: Space for Value in Positive Case
A17: 2. CHANGE TO STACKED BAR AND SWITCH AROUND ROW AND COLUMN | BF17: INPUT: LABEL SPACE: This is enough to make graph without fancy stuff
A18: 3. SELECT DATA SERIES AND NO FILL EVERYTHING EXCEPT INCREMENTS | BG18: CALCULATION: ADJUSTED BASE VALUE: This is base of the stacked bar minus the label space if the increment is negative
A19: 4. SELECT DATA PONTS FOR BASE BAR AND FILL STARTING, ENDING AND SUBTOTALS | BH19: CALCULATION: NEGATIVE SPACE: This is the label space if the increment is negative
A20: 5. CHANGE THE SERIES CHART TYPE OF THE CONNECTOR LINES -- SERIES 5 FORWARD | BI20: CALCULATION: POSITIVE SPACE: This is label space if the increment is positive
